{"text_format":"1","workbook":"xlsx","n_sheets":12,"sheets":["CONFIGURATION","Company Information","Index","Declaration","Insurance Manager Return","Cyber Risk Schedule","AML-ATF Questionnaire","Sanctions","Attachments","FileStorage","Zones","Data Validation List"],"not_rendered":{"charts":0,"images":1,"macros":1,"external_links":0,"defined_names":51,"comments":0,"pivot_tables":0},"unopened":[],"bounds":{"document_bytes":16777216,"sheet_cells":100000,"rows_first":2000,"rows_last":500,"rows_between":2000,"halvings":0,"cell_chars":16384,"cell_head_chars":4096},"cells_cut":0,"cells_raw":0,"read":"whole","date_system":"1900"}

{"sheet":"CONFIGURATION","index":0,"n_rows":23,"n_cols":6,"rows_kept":23,"cut":false,"hidden":true,"merged":[]}
["ENTITY_ID",{"$f":"'Company Information'!E3","v":0},null,"Company Information","E3","Please enter Registration Number"]
["ENTITY_NAME",{"$f":"'Company Information'!C3","v":"Enter Insurance Manager Name"},null,"Company Information","C3","Enter Company Name"]
["FILING_TYPE","AMLIMGR",null,"Company Information","E4","Select License Classification"]
["FILING_YEAR",2022]
["CONTACT_PERSON_NAME",{"$f":"'Company Information'!C7 & \" \" & 'Company Information'!E7","v":" "},null,"Company Information","C7","Please enter name"]
["CONTACT_PERSON_EMAIL",{"$f":"'Company Information'!C13","v":0},null,"Company Information","C13","Please enter E-mail address"]
["CONTACT_PERSON_PHONE",{"$f":"'Company Information'!C12","v":0},null,"Company Information","C12","Please enter telephone number"]
["OPTION"]
["COMMENT"]
["CURRENCY_CODE","USD"]
["CLASS","AMLIMGR"]
["DECIMALS",1000,"Thousand Units"]
["FILINGWEBSERVICE","https://amlreturn.bma.bm/filing.ashx"]
["VALIDATIONWEBSERVICE"]
["FILINGCOUNTERWEBSERVICE","https://amlreturn.bma.bm/FilingCounter.ashx"]
["DUMMYWEBSERVICE","https://amlreturn.bma.bm/dummy.ashx"]
["XBRLCONVERSIONWEBSERVICE"]
["PREPOPULATEWEBSERVICE"]
["PREYEARSTARTDATE"]
["PREYEARENDDATE"]
["SAVEDDATAPOPULATEWEBSERVICE"]
["FORMVERSION",2022]
["FILINGID"]

{"sheet":"Company Information","index":1,"n_rows":15,"n_cols":4,"rows_kept":15,"cut":false,"hidden":false,"merged":[]}
[null,"COMPANY INFORMATION"]
[]
[null,"Company name","Enter Insurance Manager Name","Registration number"]
[null,"Date incorporated"]
[]
[null,"Contact Details"]
[null,"First name",null,"Last name"]
[]
[null,"Principal office address"]
[null,"City"]
[null,"Country"]
[null,"Phone number"]
[null,"Email"]
[]
[null,"Date prepared"]

{"sheet":"Index","index":2,"n_rows":8,"n_cols":24,"rows_kept":8,"cut":false,"hidden":false,"merged":[[4,2,5,7],[4,9,5,14],[4,16,5,21],[4,23,5,28],[7,2,8,7],[7,9,8,14],[7,16,8,21]]}
[null,"INDEX"]
[null,{"$f":"'Company Information'!C3","v":"Enter Insurance Manager Name"}]
[null,"CLICK BUTTON TO NAVIGATE"]
[]
[null,null,{"$f":"HYPERLINK(\"#'Company Information'!A1\",\"Company Information\")","v":"Company Information"},null,null,null,null,null,null,{"$f":"HYPERLINK(\"#'Declaration'!A1\",\"Declaration Sheet\")","v":"Declaration Sheet"},null,null,null,null,null,null,{"$f":"HYPERLINK(\"#'Insurance Manager Return'!A1\",\"Insurance Manager Return\")","v":"Insurance Manager Return"},null,null,null,null,null,null,{"$f":"HYPERLINK(\"#'Cyber Risk Schedule'!A1\",\"Cyber Risk Schedule\")","v":"Cyber Risk Schedule"}]
[]
[]
[null,null,{"$f":"HYPERLINK(\"#'AML-ATF Questionnaire'!A1\",\"AML-ATF Questionnaire\")","v":"AML-ATF Questionnaire"},null,null,null,null,null,null,{"$f":"HYPERLINK(\"#'Sanctions'!A1\",\"Sanctions\")","v":"Sanctions"},null,null,null,null,null,null,{"$f":"HYPERLINK(\"#'Attachments'!A1\",\"Attachments\")","v":"Attachments"}]

{"sheet":"Declaration","index":3,"n_rows":18,"n_cols":3,"rows_kept":18,"cut":false,"hidden":false,"merged":[[0,1,0,5],[17,2,17,4],[2,1,2,4],[4,2,4,4],[6,2,6,4],[9,2,9,4],[12,2,12,4],[14,2,14,4]]}
[]
[null,{"$f":"'Company Information'!C3","v":"Enter Insurance Manager Name"}]
[null,"We declare that to the best of our knowledge and belief, the information in this annual return is fair and accurate."]
[]
[null,"Signatory:"]
[]
[null,"Print name:"]
[null,null,"Director or chief executive"]
[]
[null,"Date"]
[]
[]
[null,"Signatory:"]
[]
[null,"Print name:"]
[null,null,"Director"]
[]
[null,"Date"]

{"sheet":"Insurance Manager Return","index":4,"n_rows":509,"n_cols":10,"rows_kept":509,"cut":false,"hidden":false,"merged":[[162,2,162,7],[466,4,466,5],[459,4,459,5],[461,4,461,5],[460,4,460,5],[463,4,463,5],[462,4,462,5],[456,4,456,5],[457,4,457,5],[458,4,458,5],[464,4,464,5],[465,4,465,5],[468,2,468,6],[442,2,443,6],[0,2,0,5],[493,2,493,6],[497,2,497,6],[446,4,446,5],[447,4,447,5],[448,4,448,5],[449,4,449,5],[450,4,450,5],[451,4,451,5],[452,4,452,5],[453,4,453,5],[454,4,454,5],[455,4,455,5],[135,3,135,7]]}
[null,null,"SCHEDULE I - INSURANCE MANAGER RETURN"]
[null,null,{"$f":"'Company Information'!C3","v":"Enter Insurance Manager Name"}]
[]
[]
[null,"(a)","Provide names of the directors, type of director, residence, professional qualifications and experience"]
[null,null,"Enter number of directors"]
[]
[null,null,"Name","Type of Director","Residence","Professional Qualifications","Experience","Years Appointed by Insurance Manager"]
[null,1,null,"Please Select"]
[null,2,null,"Please Select"]
[null,3,null,"Please Select"]
[null,4,null,"Please Select"]
[null,5,null,"Please Select"]
[null,6,null,"Please Select"]
[null,7,null,"Please Select"]
[null,8,null,"Please Select"]
[null,9,null,"Please Select"]
[null,10,null,"Please Select"]
[null,11,null,"Please Select"]
[null,12,null,"Please Select"]
[null,13,null,"Please Select"]
[null,14,null,"Please Select"]
[null,15,null,"Please Select"]
[null,16,null,"Please Select"]
[null,17,null,"Please Select"]
[null,18,null,"Please Select"]
[null,19,null,"Please Select"]
[null,20,null,"Please Select"]
[]
[null,"(b)(i)","Management and officers of the insurance manager, including but not limited to: names, roles, residence, professional qualifications and experience"]
[null,null,"Enter number of officers"]
[]
[null,null,"Name","Role","Residence","Professional Qualifications","Experience ","Years Employed by Insurance Manager"]
[null,1]
[null,2]
[null,3]
[null,4]
[null,5]
[null,6]
[null,7]
[null,8]
[null,9]
[null,10]
[null,11]
[null,12]
[null,13]
[null,14]
[null,15]
[null,16]
[null,17]
[null,18]
[null,19]
[null,20]
[]
[null,"(b)(ii)","Other staff and employees who work on the managed insurers, including names, roles, residences, professional qualifications and experience, and confirmation if employed by an affiliate company"]
[null,null,"Enter number of staff"]
[]
[null,null,"Name","Role","Residence","Professional Qualifications","Experience","Employed by Affiliate","If Affiliate, Name of Affiliate","Years Employed"]
[null,1,null,null,null,null,null,"Please Select"]
[null,{"$f":"B59+1","v":2},null,null,null,null,null,"Please Select"]
[null,{"$f":"B60+1","v":3},null,null,null,null,null,"Please Select"]
[null,4,null,null,null,null,null,"Please Select"]
[null,5,null,null,null,null,null,"Please Select"]
[null,6,null,null,null,null,null,"Please Select"]
[null,7,null,null,null,null,null,"Please Select"]
[null,8,null,null,null,null,null,"Please Select"]
[null,9,null,null,null,null,null,"Please Select"]
[null,10,null,null,null,null,null,"Please Select"]
[null,11,null,null,null,null,null,"Please Select"]
[null,12,null,null,null,null,null,"Please Select"]
[null,13,null,null,null,null,null,"Please Select"]
[null,14,null,null,null,null,null,"Please Select"]
[null,15,null,null,null,null,null,"Please Select"]
[null,16,null,null,null,null,null,"Please Select"]
[null,17,null,null,null,null,null,"Please Select"]
[null,18,null,null,null,null,null,"Please Select"]
[null,19,null,null,null,null,null,"Please Select"]
[null,20,null,null,null,null,null,"Please Select"]
[null,21,null,null,null,null,null,"Please Select"]
[null,22,null,null,null,null,null,"Please Select"]
[null,23,null,null,null,null,null,"Please Select"]
[null,24,null,null,null,null,null,"Please Select"]
[null,25,null,null,null,null,null,"Please Select"]
[null,26,null,null,null,null,null,"Please Select"]
[null,27,null,null,null,null,null,"Please Select"]
[null,28,null,null,null,null,null,"Please Select"]
[null,29,null,null,null,null,null,"Please Select"]
[null,30,null,null,null,null,null,"Please Select"]
[null,31,null,null,null,null,null,"Please Select"]
[null,32,null,null,null,null,null,"Please Select"]
[null,33,null,null,null,null,null,"Please Select"]
[null,34,null,null,null,null,null,"Please Select"]
[null,35,null,null,null,null,null,"Please Select"]
[null,36,null,null,null,null,null,"Please Select"]
[null,37,null,null,null,null,null,"Please Select"]
[null,38,null,null,null,null,null,"Please Select"]
[null,39,null,null,null,null,null,"Please Select"]
[null,40,null,null,null,null,null,"Please Select"]
[null,41,null,null,null,null,null,"Please Select"]
[null,42,null,null,null,null,null,"Please Select"]
[null,43,null,null,null,null,null,"Please Select"]
[null,44,null,null,null,null,null,"Please Select"]
[null,45,null,null,null,null,null,"Please Select"]
[null,46,null,null,null,null,null,"Please Select"]
[null,47,null,null,null,null,null,"Please Select"]
[null,48,null,null,null,null,null,"Please Select"]
[null,49,null,null,null,null,null,"Please Select"]
[null,50,null,null,null,null,null,"Please Select"]
[null,51,null,null,null,null,null,"Please Select"]
[null,52,null,null,null,null,null,"Please Select"]
[null,53,null,null,null,null,null,"Please Select"]
[null,54,null,null,null,null,null,"Please Select"]
[null,55,null,null,null,null,null,"Please Select"]
[null,56,null,null,null,null,null,"Please Select"]
[null,57,null,null,null,null,null,"Please Select"]
[null,58,null,null,null,null,null,"Please Select"]
[null,59,null,null,null,null,null,"Please Select"]
[null,60,null,null,null,null,null,"Please Select"]
[]
[null,"(c)","Details of the services provided by the insurance manager (confirm with the yes/no drop-down box)"]
[null,"(i)","Principal representative",null,"Please Select"]
[null,"(ii)","Directorships/board member",null,"Please Select"]
[null,"(iiii)","Senior officer",null,"Please Select"]
[null,"(iv)","Accounting",null,"Please Select"]
[null,"(vi)","Preparation of prudential/statutory financial return",null,"Please Select"]
[null,"(vii)","Underwriting",null,"Please Select"]
[null,"(viii)","Claims handling",null,"Please Select"]
[null,"(ix)","Risk management",null,"Please Select"]
[null,"(x)","Investment",null,"Please Select"]
[null,"(xi)","Treasury",null,"Please Select"]
[null,"(xii)","Actuarial functions",null,"Please Select"]
[null,"(xiii)","Internal audit",null,"Please Select"]
[null,"(xiv)","\tCompliance\r\n",null,"Please Select"]
[null,"(xv)","AML/ATF/sanctions compliance",null,"Please Select"]
[null,"(xvi)","Money laundering reporting officer",null,"Please Select"]
[null,"(xvii)","Other (if other, disclose)"]
[]
[null,"(d)","Details of the services in subparagraph (c) which are outsourced to service providers or affiliates of the insurance manager"]
[null,null,"Enter number of services outsourced"]
[]
[null,null,"Name of Provider ","Jurisdiction","Confirm if Affiliate","Details of Services Provided"]
[null,1,null,null,"Please Select"]
[null,2,null,null,"Please Select"]
[null,3,null,null,"Please Select"]
[null,4,null,null,"Please Select"]
[null,5,null,null,"Please Select"]
[null,6,null,null,"Please Select"]
[null,7,null,null,"Please Select"]
[null,8,null,null,"Please Select"]
[null,9,null,null,"Please Select"]
[null,10,null,null,"Please Select"]
[null,11,null,null,"Please Select"]
[null,12,null,null,"Please Select"]
[null,13,null,null,"Please Select"]
[null,14,null,null,"Please Select"]
[null,15,null,null,"Please Select"]
[null,16,null,null,"Please Select"]
[null,17,null,null,"Please Select"]
[null,18,null,null,"Please Select"]
[null,19,null,null,"Please Select"]
[null,20,null,null,"Please Select"]
[]
[null,"(e)","For all entities for which the Insurance Manager has been appointed the principal representative or insurance manager, details of the names, registration numbers, insurance classes and whether affiliate or non-affiliate of the Insurance Manager, and principal representative. (Insurers with dual licences to provide both general Business and long-term Classes)"]
[null,null,"Enter the number of insurers"]
[]
[null,null,"Name of Entity","Registration Number","General Business","Long-Term Business","Entity is Affiliate or Non-Affiliate","Principal Representation"]
[null,1,null,null,null,null,"Please Select","Select Yes/No"]
[null,2,null,null,null,null,"Please Select","Select Yes/No"]
[null,3,null,null,null,null,"Please Select","Select Yes/No"]
[null,4,null,null,null,null,"Please Select","Select Yes/No"]
[null,5,null,null,null,null,"Please Select","Select Yes/No"]
[null,6,null,null,null,null,"Please Select","Select Yes/No"]
[null,7,null,null,null,null,"Please Select","Select Yes/No"]
[null,8,null,null,null,null,"Please Select","Select Yes/No"]
[null,9,null,null,null,null,"Please Select","Select Yes/No"]
[null,10,null,null,null,null,"Please Select","Select Yes/No"]
[null,11,null,null,null,null,"Please Select","Select Yes/No"]
[null,12,null,null,null,null,"Please Select","Select Yes/No"]
[null,13,null,null,null,null,"Please Select","Select Yes/No"]
[null,14,null,null,null,null,"Please Select","Select Yes/No"]
[null,15,null,null,null,null,"Please Select","Select Yes/No"]
[null,16,null,null,null,null,"Please Select","Select Yes/No"]
[null,17,null,null,null,null,"Please Select","Select Yes/No"]
[null,18,null,null,null,null,"Please Select","Select Yes/No"]
[null,19,null,null,null,null,"Please Select","Select Yes/No"]
[null,20,null,null,null,null,"Please Select","Select Yes/No"]
[null,21,null,null,null,null,"Please Select","Select Yes/No"]
[null,22,null,null,null,null,"Please Select","Select Yes/No"]
[null,23,null,null,null,null,"Please Select","Select Yes/No"]
[null,24,null,null,null,null,"Please Select","Select Yes/No"]
[null,25,null,null,null,null,"Please Select","Select Yes/No"]
[null,26,null,null,null,null,"Please Select","Select Yes/No"]
[null,27,null,null,null,null,"Please Select","Select Yes/No"]
[null,28,null,null,null,null,"Please Select","Select Yes/No"]
[null,29,null,null,null,null,"Please Select","Select Yes/No"]
[null,30,null,null,null,null,"Please Select","Select Yes/No"]
[null,31,null,null,null,null,"Please Select","Select Yes/No"]
[null,32,null,null,null,null,"Please Select","Select Yes/No"]
[null,33,null,null,null,null,"Please Select","Select Yes/No"]
[null,34,null,null,null,null,"Please Select","Select Yes/No"]
[null,35,null,null,null,null,"Please Select","Select Yes/No"]
[null,36,null,null,null,null,"Please Select","Select Yes/No"]
[null,37,null,null,null,null,"Please Select","Select Yes/No"]
[null,38,null,null,null,null,"Please Select","Select Yes/No"]
[null,39,null,null,null,null,"Please Select","Select Yes/No"]
[null,40,null,null,null,null,"Please Select","Select Yes/No"]
[null,41,null,null,null,null,"Please Select","Select Yes/No"]
[null,42,null,null,null,null,"Please Select","Select Yes/No"]
[null,43,null,null,null,null,"Please Select","Select Yes/No"]
[null,44,null,null,null,null,"Please Select","Select Yes/No"]
[null,45,null,null,null,null,"Please Select","Select Yes/No"]
[null,46,null,null,null,null,"Please Select","Select Yes/No"]
[null,47,null,null,null,null,"Please Select","Select Yes/No"]
[null,48,null,null,null,null,"Please Select","Select Yes/No"]
[null,49,null,null,null,null,"Please Select","Select Yes/No"]
[null,50,null,null,null,null,"Please Select","Select Yes/No"]
[null,51,null,null,null,null,"Please Select","Select Yes/No"]
[null,52,null,null,null,null,"Please Select","Select Yes/No"]
[null,53,null,null,null,null,"Please Select","Select Yes/No"]
[null,54,null,null,null,null,"Please Select","Select Yes/No"]
[null,55,null,null,null,null,"Please Select","Select Yes/No"]
[null,56,null,null,null,null,"Please Select","Select Yes/No"]
[null,57,null,null,null,null,"Please Select","Select Yes/No"]
[null,58,null,null,null,null,"Please Select","Select Yes/No"]
[null,59,null,null,null,null,"Please Select","Select Yes/No"]
[null,60,null,null,null,null,"Please Select","Select Yes/No"]
[null,61,null,null,null,null,"Please Select","Select Yes/No"]
[null,62,null,null,null,null,"Please Select","Select Yes/No"]
[null,63,null,null,null,null,"Please Select","Select Yes/No"]
[null,64,null,null,null,null,"Please Select","Select Yes/No"]
[null,65,null,null,null,null,"Please Select","Select Yes/No"]
[null,66,null,null,null,null,"Please Select","Select Yes/No"]
[null,67,null,null,null,null,"Please Select","Select Yes/No"]
[null,68,null,null,null,null,"Please Select","Select Yes/No"]
[null,69,null,null,null,null,"Please Select","Select Yes/No"]
[null,70,null,null,null,null,"Please Select","Select Yes/No"]
[null,71,null,null,null,null,"Please Select","Select Yes/No"]
[null,72,null,null,null,null,"Please Select","Select Yes/No"]
[null,73,null,null,null,null,"Please Select","Select Yes/No"]
[null,74,null,null,null,null,"Please Select","Select Yes/No"]
[null,75,null,null,null,null,"Please Select","Select Yes/No"]
[null,76,null,null,null,null,"Please Select","Select Yes/No"]
[null,77,null,null,null,null,"Please Select","Select Yes/No"]
[null,78,null,null,null,null,"Please Select","Select Yes/No"]
[null,79,null,null,null,null,"Please Select","Select Yes/No"]
[null,80,null,null,null,null,"Please Select","Select Yes/No"]
[null,81,null,null,null,null,"Please Select","Select Yes/No"]
[null,82,null,null,null,null,"Please Select","Select Yes/No"]
[null,83,null,null,null,null,"Please Select","Select Yes/No"]
[null,84,null,null,null,null,"Please Select","Select Yes/No"]
[null,85,null,null,null,null,"Please Select","Select Yes/No"]
[null,86,null,null,null,null,"Please Select","Select Yes/No"]
[null,87,null,null,null,null,"Please Select","Select Yes/No"]
[null,88,null,null,null,null,"Please Select","Select Yes/No"]
[null,89,null,null,null,null,"Please Select","Select Yes/No"]
[null,90,null,null,null,null,"Please Select","Select Yes/No"]
[null,91,null,null,null,null,"Please Select","Select Yes/No"]
[null,92,null,null,null,null,"Please Select","Select Yes/No"]
[null,93,null,null,null,null,"Please Select","Select Yes/No"]
[null,94,null,null,null,null,"Please Select","Select Yes/No"]
[null,95,null,null,null,null,"Please Select","Select Yes/No"]
[null,96,null,null,null,null,"Please Select","Select Yes/No"]
[null,97,null,null,null,null,"Please Select","Select Yes/No"]
[null,98,null,null,null,null,"Please Select","Select Yes/No"]
[null,99,null,null,null,null,"Please Select","Select Yes/No"]
[null,100,null,null,null,null,"Please Select","Select Yes/No"]
[null,101,null,null,null,null,"Please Select","Select Yes/No"]
[null,102,null,null,null,null,"Please Select","Select Yes/No"]
[null,103,null,null,null,null,"Please Select","Select Yes/No"]
[null,104,null,null,null,null,"Please Select","Select Yes/No"]
[null,105,null,null,null,null,"Please Select","Select Yes/No"]
[null,106,null,null,null,null,"Please Select","Select Yes/No"]
[null,107,null,null,null,null,"Please Select","Select Yes/No"]
[null,108,null,null,null,null,"Please Select","Select Yes/No"]
[null,109,null,null,null,null,"Please Select","Select Yes/No"]
[null,110,null,null,null,null,"Please Select","Select Yes/No"]
[null,111,null,null,null,null,"Please Select","Select Yes/No"]
[null,112,null,null,null,null,"Please Select","Select Yes/No"]
[null,113,null,null,null,null,"Please Select","Select Yes/No"]
[null,114,null,null,null,null,"Please Select","Select Yes/No"]
[null,115,null,null,null,null,"Please Select","Select Yes/No"]
[null,116,null,null,null,null,"Please Select","Select Yes/No"]
[null,117,null,null,null,null,"Please Select","Select Yes/No"]
[null,118,null,null,null,null,"Please Select","Select Yes/No"]
[null,119,null,null,null,null,"Please Select","Select Yes/No"]
[null,120,null,null,null,null,"Please Select","Select Yes/No"]
[null,121,null,null,null,null,"Please Select","Select Yes/No"]
[null,122,null,null,null,null,"Please Select","Select Yes/No"]
[null,123,null,null,null,null,"Please Select","Select Yes/No"]
[null,124,null,null,null,null,"Please Select","Select Yes/No"]
[null,125,null,null,null,null,"Please Select","Select Yes/No"]
[null,126,null,null,null,null,"Please Select","Select Yes/No"]
[null,127,null,null,null,null,"Please Select","Select Yes/No"]
[null,128,null,null,null,null,"Please Select","Select Yes/No"]
[null,129,null,null,null,null,"Please Select","Select Yes/No"]
[null,130,null,null,null,null,"Please Select","Select Yes/No"]
[null,131,null,null,null,null,"Please Select","Select Yes/No"]
[null,132,null,null,null,null,"Please Select","Select Yes/No"]
[null,133,null,null,null,null,"Please Select","Select Yes/No"]
[null,134,null,null,null,null,"Please Select","Select Yes/No"]
[null,135,null,null,null,null,"Please Select","Select Yes/No"]
[null,136,null,null,null,null,"Please Select","Select Yes/No"]
[null,137,null,null,null,null,"Please Select","Select Yes/No"]
[null,138,null,null,null,null,"Please Select","Select Yes/No"]
[null,139,null,null,null,null,"Please Select","Select Yes/No"]
[null,140,null,null,null,null,"Please Select","Select Yes/No"]
[null,141,null,null,null,null,"Please Select","Select Yes/No"]
[null,142,null,null,null,null,"Please Select","Select Yes/No"]
[null,143,null,null,null,null,"Please Select","Select Yes/No"]
[null,144,null,null,null,null,"Please Select","Select Yes/No"]
[null,145,null,null,null,null,"Please Select","Select Yes/No"]
[null,146,null,null,null,null,"Please Select","Select Yes/No"]
[null,147,null,null,null,null,"Please Select","Select Yes/No"]
[null,148,null,null,null,null,"Please Select","Select Yes/No"]
[null,149,null,null,null,null,"Please Select","Select Yes/No"]
[null,150,null,null,null,null,"Please Select","Select Yes/No"]
[null,151,null,null,null,null,"Please Select","Select Yes/No"]
[null,152,null,null,null,null,"Please Select","Select Yes/No"]
[null,153,null,null,null,null,"Please Select","Select Yes/No"]
[null,154,null,null,null,null,"Please Select","Select Yes/No"]
[null,155,null,null,null,null,"Please Select","Select Yes/No"]
[null,156,null,null,null,null,"Please Select","Select Yes/No"]
[null,157,null,null,null,null,"Please Select","Select Yes/No"]
[null,158,null,null,null,null,"Please Select","Select Yes/No"]
[null,159,null,null,null,null,"Please Select","Select Yes/No"]
[null,160,null,null,null,null,"Please Select","Select Yes/No"]
[null,161,null,null,null,null,"Please Select","Select Yes/No"]
[null,162,null,null,null,null,"Please Select","Select Yes/No"]
[null,163,null,null,null,null,"Please Select","Select Yes/No"]
[null,164,null,null,null,null,"Please Select","Select Yes/No"]
[null,165,null,null,null,null,"Please Select","Select Yes/No"]
[null,166,null,null,null,null,"Please Select","Select Yes/No"]
[null,167,null,null,null,null,"Please Select","Select Yes/No"]
[null,168,null,null,null,null,"Please Select","Select Yes/No"]
[null,169,null,null,null,null,"Please Select","Select Yes/No"]
[null,170,null,null,null,null,"Please Select","Select Yes/No"]
[null,171,null,null,null,null,"Please Select","Select Yes/No"]
[null,172,null,null,null,null,"Please Select","Select Yes/No"]
[null,173,null,null,null,null,"Please Select","Select Yes/No"]
[null,174,null,null,null,null,"Please Select","Select Yes/No"]
[null,175,null,null,null,null,"Please Select","Select Yes/No"]
[null,176,null,null,null,null,"Please Select","Select Yes/No"]
[null,177,null,null,null,null,"Please Select","Select Yes/No"]
[null,178,null,null,null,null,"Please Select","Select Yes/No"]
[null,179,null,null,null,null,"Please Select","Select Yes/No"]
[null,180,null,null,null,null,"Please Select","Select Yes/No"]
[null,181,null,null,null,null,"Please Select","Select Yes/No"]
[null,182,null,null,null,null,"Please Select","Select Yes/No"]
[null,183,null,null,null,null,"Please Select","Select Yes/No"]
[null,184,null,null,null,null,"Please Select","Select Yes/No"]
[null,185,null,null,null,null,"Please Select","Select Yes/No"]
[null,186,null,null,null,null,"Please Select","Select Yes/No"]
[null,187,null,null,null,null,"Please Select","Select Yes/No"]
[null,188,null,null,null,null,"Please Select","Select Yes/No"]
[null,189,null,null,null,null,"Please Select","Select Yes/No"]
[null,190,null,null,null,null,"Please Select","Select Yes/No"]
[null,191,null,null,null,null,"Please Select","Select Yes/No"]
[null,192,null,null,null,null,"Please Select","Select Yes/No"]
[null,193,null,null,null,null,"Please Select","Select Yes/No"]
[null,194,null,null,null,null,"Please Select","Select Yes/No"]
[null,195,null,null,null,null,"Please Select","Select Yes/No"]
[null,196,null,null,null,null,"Please Select","Select Yes/No"]
[null,197,null,null,null,null,"Please Select","Select Yes/No"]
[null,198,null,null,null,null,"Please Select","Select Yes/No"]
[null,199,null,null,null,null,"Please Select","Select Yes/No"]
[null,200,null,null,null,null,"Please Select","Select Yes/No"]
[null,201,null,null,null,null,"Please Select","Select Yes/No"]
[null,202,null,null,null,null,"Please Select","Select Yes/No"]
[null,203,null,null,null,null,"Please Select","Select Yes/No"]
[null,204,null,null,null,null,"Please Select","Select Yes/No"]
[null,205,null,null,null,null,"Please Select","Select Yes/No"]
[null,206,null,null,null,null,"Please Select","Select Yes/No"]
[null,207,null,null,null,null,"Please Select","Select Yes/No"]
[null,208,null,null,null,null,"Please Select","Select Yes/No"]
[null,209,null,null,null,null,"Please Select","Select Yes/No"]
[null,210,null,null,null,null,"Please Select","Select Yes/No"]
[null,211,null,null,null,null,"Please Select","Select Yes/No"]
[null,212,null,null,null,null,"Please Select","Select Yes/No"]
[null,213,null,null,null,null,"Please Select","Select Yes/No"]
[null,214,null,null,null,null,"Please Select","Select Yes/No"]
[null,215,null,null,null,null,"Please Select","Select Yes/No"]
[null,216,null,null,null,null,"Please Select","Select Yes/No"]
[null,217,null,null,null,null,"Please Select","Select Yes/No"]
[null,218,null,null,null,null,"Please Select","Select Yes/No"]
[null,219,null,null,null,null,"Please Select","Select Yes/No"]
[null,220,null,null,null,null,"Please Select","Select Yes/No"]
[null,221,null,null,null,null,"Please Select","Select Yes/No"]
[null,222,null,null,null,null,"Please Select","Select Yes/No"]
[null,223,null,null,null,null,"Please Select","Select Yes/No"]
[null,224,null,null,null,null,"Please Select","Select Yes/No"]
[null,225,null,null,null,null,"Please Select","Select Yes/No"]
[null,226,null,null,null,null,"Please Select","Select Yes/No"]
[null,227,null,null,null,null,"Please Select","Select Yes/No"]
[null,228,null,null,null,null,"Please Select","Select Yes/No"]
[null,229,null,null,null,null,"Please Select","Select Yes/No"]
[null,230,null,null,null,null,"Please Select","Select Yes/No"]
[null,231,null,null,null,null,"Please Select","Select Yes/No"]
[null,232,null,null,null,null,"Please Select","Select Yes/No"]
[null,233,null,null,null,null,"Please Select","Select Yes/No"]
[null,234,null,null,null,null,"Please Select","Select Yes/No"]
[null,235,null,null,null,null,"Please Select","Select Yes/No"]
[null,236,null,null,null,null,"Please Select","Select Yes/No"]
[null,237,null,null,null,null,"Please Select","Select Yes/No"]
[null,238,null,null,null,null,"Please Select","Select Yes/No"]
[null,239,null,null,null,null,"Please Select","Select Yes/No"]
[null,240,null,null,null,null,"Please Select","Select Yes/No"]
[null,241,null,null,null,null,"Please Select","Select Yes/No"]
[null,242,null,null,null,null,"Please Select","Select Yes/No"]
[null,243,null,null,null,null,"Please Select","Select Yes/No"]
[null,244,null,null,null,null,"Please Select","Select Yes/No"]
[null,245,null,null,null,null,"Please Select","Select Yes/No"]
[null,246,null,null,null,null,"Please Select","Select Yes/No"]
[null,247,null,null,null,null,"Please Select","Select Yes/No"]
[null,248,null,null,null,null,"Please Select","Select Yes/No"]
[null,249,null,null,null,null,"Please Select","Select Yes/No"]
[null,250,null,null,null,null,"Please Select","Select Yes/No"]
[null,251,null,null,null,null,"Please Select","Select Yes/No"]
[null,252,null,null,null,null,"Please Select","Select Yes/No"]
[null,253,null,null,null,null,"Please Select","Select Yes/No"]
[null,254,null,null,null,null,"Please Select","Select Yes/No"]
[null,255,null,null,null,null,"Please Select","Select Yes/No"]
[null,256,null,null,null,null,"Please Select","Select Yes/No"]
[null,257,null,null,null,null,"Please Select","Select Yes/No"]
[null,258,null,null,null,null,"Please Select","Select Yes/No"]
[null,259,null,null,null,null,"Please Select","Select Yes/No"]
[null,260,null,null,null,null,"Please Select","Select Yes/No"]
[null,261,null,null,null,null,"Please Select","Select Yes/No"]
[null,262,null,null,null,null,"Please Select","Select Yes/No"]
[null,263,null,null,null,null,"Please Select","Select Yes/No"]
[null,264,null,null,null,null,"Please Select","Select Yes/No"]
[null,265,null,null,null,null,"Please Select","Select Yes/No"]
[null,266,null,null,null,null,"Please Select","Select Yes/No"]
[null,267,null,null,null,null,"Please Select","Select Yes/No"]
[null,268,null,null,null,null,"Please Select","Select Yes/No"]
[null,269,null,null,null,null,"Please Select","Select Yes/No"]
[null,270,null,null,null,null,"Please Select","Select Yes/No"]
[null,271,null,null,null,null,"Please Select","Select Yes/No"]
[null,272,null,null,null,null,"Please Select","Select Yes/No"]
[null,273,null,null,null,null,"Please Select","Select Yes/No"]
[null,274,null,null,null,null,"Please Select","Select Yes/No"]
[null,275,null,null,null,null,"Please Select","Select Yes/No"]
[]
[null,"(f)","Details of any of the entities referred to in item (e) above, who have, to the best of the knowledge of the Insurance Manager, breached or been non-compliant or potentially non-compliant for the preceding 12 months from the date of this filing with the Insurance Act 1978, relevant Rules and Regulations, the Proceeds of Crime (Anti-Money Laundering and Anti-Terrorist Financing) Regulations 2008 and the International Sanctions Regulations 2013."]
[]
[null,null,"Enter number of breaches"]
[]
[null,null,"Name of Entity ","Registration Number","Description of Non-Compliance or Potential Non-Compliance"]
[null,1]
[null,2]
[null,3]
[null,4]
[null,5]
[null,6]
[null,7]
[null,8]
[null,9]
[null,10]
[null,11]
[null,12]
[null,13]
[null,14]
[null,15]
[null,16]
[null,17]
[null,18]
[null,19]
[null,20]
[]
[null,"(g)","Details of policies have been issued to the insurance manager in respect of professional indemnity insurance, directors and officers insurance, and errors and omissions insurance"]
[null,null,"Enter number of policies"]
[]
[null,null,"Full Legal Name of Insurers","Financial Strength","Name of Agency","Line of Business/Insurance Class","Excess/Deductible","Policy Limit"]
[null,1,null,null,null,"Please Select"]
[null,2,null,null,null,"Please Select"]
[null,3,null,null,null,"Please Select"]
[null,4,null,null,null,"Please Select"]
[null,5,null,null,null,"Please Select"]
[null,6,null,null,null,"Please Select"]
[null,7,null,null,null,"Please Select"]
[null,8,null,null,null,"Please Select"]
[null,9,null,null,null,"Please Select"]
[null,10,null,null,null,"Please Select"]
[null,11,null,null,null,"Please Select"]
[null,12,null,null,null,"Please Select"]
[null,13,null,null,null,"Please Select"]
[null,14,null,null,null,"Please Select"]
[null,15,null,null,null,"Please Select"]
[null,16,null,null,null,"Please Select"]
[null,17,null,null,null,"Please Select"]
[null,18,null,null,null,"Please Select"]
[null,19,null,null,null,"Please Select"]
[null,20,null,null,null,"Please Select"]
[]
[null,"(h)","Confirmation that the Insurance Manager has met all of the requirements of the minimum criteria for registration in accordance with the Insurance Act 1978."]
[null,null,"Confirm compliance","Please Select"]
[]
[null,"(i)","Where an Insurance Manager has not met the minimum criteria for registration, a description of the non-compliance and any remedial action taken, if any."]
[]
[]
[]
[]
[null,null,null,"Insurance Manager","Insurance Manager","Insurer","Yes"]
[null,null,null,"Other Third Party","Other Third Party","Affiliate","No"]
[null,null,null,"Affiliate","Affiliate","External service provider "]
[]
[]
[null,null,null,null,null,null,"Executive"]
[null,null,null,null,null,null,"Non-executive (Service Provider)"]
[null,null,null,null,null,null,"Non-executive (Independent)"]

{"sheet":"Cyber Risk Schedule","index":5,"n_rows":118,"n_cols":13,"rows_kept":118,"cut":false,"hidden":false,"merged":[[46,12,46,13],[47,12,47,13],[48,12,48,13],[54,12,54,13],[63,12,63,13],[64,12,64,13],[67,12,67,13],[74,12,74,13],[85,12,85,13],[86,12,86,13],[45,12,45,13],[1,1,1,3],[8,1,9,8],[3,9,3,10],[4,9,4,10],[5,9,5,10],[18,1,19,13],[21,1,22,13],[35,2,35,8],[43,12,43,13],[44,12,44,13]]}
[]
[null,{"$f":"'Company Information'!C3","v":"Enter Insurance Manager Name"}]
[]
[null,"Preparer Name:"]
[null,"Position:"]
[null,"Date Prepared:"]
[]
[null,null,null,null,null,null,null,null,null,"Response"]
[null,"1) Please indicate whether the Insurance Manager is the  primary systems provider responsible for any of the managed entities (disclosed in the Insurance Manager Return tab) key information assets? (i.e. responsible for managing and supporting Information Technology (IT) services)",null,null,null,null,null,null,null,"Select Yes/No"]
[]
[]
[null,"2) Is the Insurance Manager being primarily relied on to manage and support any managed entities' IT services?",null,null,null,null,null,null,null,"Select Yes/No"]
[]
[null,"If any of the responses are YES, please attach a list the managed entities for which the above services are being performed.",null,null,null,null,null,null,null,{"$f":"HYPERLINK(\"#'Attachments'!C14\",\"Attach file\")","v":"Attach file"}]
[null,null,null,null,null,null,null,null,null,"Response"]
[null,"TECHNOLOGY RISK - (RE)INSURER OWN CYBERSECURITY AND RESILIENCE CAPABILITIES  "]
[null,"Technology Risk Guidance"]
[]
[null,"Technology risk is a key enterprise risk that entities in the financial sectors regulated by the Bermuda Monetary Authority (Authority or BMA) must manage. The questionnaire below is designed to assess technology risk, including information security, data protection and IT or cybersecurity. The Authority expects that the board of directors of all licensed entities will have evaluated the aforementioned risks. These risks should be managed as part of an overall enterprise risk management process. This assessment is designed to assess technology risk controls. The IT or cybersecurity controls are grounded in the National Institute of Standards and Technology (NIST) Cybersecurity Framework. The assessment focuses on several areas, to include: governance, policies and procedures, ongoing training, critical/sensitive asset identification, protective measures, detection of anomalous activity, documented incident response plans, and effective business recovery processes. "]
[]
[]
[null,"The Authority recognises that there is no “one size fits all” approach to addressing these risks, as specific business circumstances may vary greatly from entity to entity. Each entity must assess their risks, create prudent policies and procedures to mitigate known risks, and ensure that the organisation is properly trained and equipped.\n"]
[]
[]
[null,"Select one response from the drop-down list. Where required/applicable, attach the relevant document indicating the document name and identifying the applicable page numbers"]
[]
[null,"SECTION A - BUSINESS SUMMARY QUESTIONS"]
[null,"Geographical details",null,null,null,null,null,null,null,null,"Responses",null,"Complete where prompted"]
[null,1,"Is the company headquartered in Bermuda",null,null,null,null,null,null,null,"Select Yes/No"]
[null,{"$f":"B29+1","v":2},"Number of users located in Bermuda",null,null,null,null,null,null,null,"Select Amount"]
[null,{"$f":"B30+1","v":3},"Number of users globally ",null,null,null,null,null,null,null,"Select Amount"]
[null,4,"Do you have a data centre in Bermuda to host your servers",null,null,null,null,null,null,null,"Select Yes/No"]
[null,5,"Do you utilise a cloud hosting company to host your servers",null,null,null,null,null,null,null,"Select Yes/No"]
[null,6,"Does the organisation have cybersecurity insurance coverage (i.e., to cover internal risk from security incidents)",null,null,null,null,null,null,null,"Select Yes/No"]
[null,"Is the following data type stored/processed"]
[null,{"$f":"B34+1","v":7},"Do you collect/store/process Personally Identifiable Information (PII) of your customers? Examples include but are not limited to: customer name, email address, social security number.",null,null,null,null,null,null,null,"Select Yes/No"]
[null,{"$f":"B36+1","v":8},"Payment card data (i.e., credit/debit card)",null,null,null,null,null,null,null,"Select Yes/No"]
[null,{"$f":"B37+1","v":9},"Is customer PII collected/stored/processed by this entity on behalf of other entities ",null,null,null,null,null,null,null,"Select Yes/No"]
[null,"Are the following internet-facing services in place "]
[null,{"$f":"B38+1","v":10},"Brochureware (static content only)",null,null,null,null,null,null,null,"Select Yes/No"]
[null,{"$f":"B40+1","v":11},"Web applications",null,null,null,null,null,null,null,"Select Yes/No"]
[null,12,"Web applications that process (query, reference, capture, store, transmit) personal data or payment card data ",null,null,null,null,null,null,null,"Select Yes/No"]
[null,"Roles and Responsibilities"]
[null,{"$f":"B42+1","v":13},"Is there a dedicated IT risk manager, if not which job title holds this responsibility",null,null,null,null,null,null,null,"Select Yes/No",null,"Confirm role holder's name"]
[null,{"$f":"B44+1","v":14},"Is there a dedicated IT security manager, if not which job title holds this responsibility",null,null,null,null,null,null,null,"Select Yes/No",null,"Confirm role holder's name"]
[null,{"$f":"B45+1","v":15},"Is there a dedicated IT disaster recovery manager, if not which job title holds this responsibility",null,null,null,null,null,null,null,"Select Yes/No",null,"Confirm role holder's name"]
[null,{"$f":"B46+1","v":16},"Is there a dedicated business continuity manager in place, if not which job title holds this responsibility",null,null,null,null,null,null,null,"Select Yes/No",null,"Confirm role holder's name"]
[null,{"$f":"B47+1","v":17},"Does the organization have a designated data privacy officer",null,null,null,null,null,null,null,"Select Yes/No",null,"Confirm role holder's name"]
[null,{"$f":"B48+1","v":18},"Is there an annual IT audit plan in place )i.e., detailing any IT audit activity for the year) ",null,null,null,null,null,null,null,"Select Yes/No",null,"Date of last internal/external IT audit"]
[]
[null,"SECTION B - NIST CONTROL SUMMARY - Answer YES/NO"]
[null,"Identify",null,null,null,null,null,null,null,null,"Responses"]
[null,1,"Is there a cyber risk management programme in place (i.e., assessing all IT risk to include IT security risk)",null,null,null,null,null,null,null,"Select Yes/No"]
[null,{"$f":"B53+1","v":2},"Is the status of the cyber risk management programme communicated to the senior management team and the Board on a regular basis",null,null,null,null,null,null,null,"Select Yes/No"]
[null,3,"Has a cyber risk policy (or cyber security policy) been approved by the Board and is annually updated",null,null,null,null,null,null,null,"Select Yes/No",null,"Specify name of relevant document"]
[null,4,"Are the roles and responsibilities of each of the three lines of defence clearly defined",null,null,null,null,null,null,null,"Select Yes/No"]
[null,5,"Has the organisation performed an assessment of compliance against data protection regulatory requirements ",null,null,null,null,null,null,null,"Select Yes/No"]
[null,6,"Asset management - are physical devices, information systems and data within the organisation inventoried",null,null,null,null,null,null,null,"Select Yes/No"]
[null,7,"Has the organisation classified all data ",null,null,null,null,null,null,null,"Select Yes/No"]
[null,8,"Has a third-party security risk assessment been completed during the past year? i.e., to assess IT risks arising from third parties",null,null,null,null,null,null,null,"Select Yes/No"]
[null,"Protect"]
[null,9,"Is data that is classified as critical, encrypted in transit and at rest  ",null,null,null,null,null,null,null,"Select Yes/No"]
[null,{"$f":"B62+1","v":10},"Is there a formal process to ensure maintenance of software and hardware (i.e., patching & managing end of life technologies) ",null,null,null,null,null,null,null,"Select Yes/No"]
[null,11,"Is there a logical access management standard defining how systems access is verified, managed, revoked and audited ",null,null,null,null,null,null,null,"Select Yes/No",null,"Specify name of relevant document"]
[null,12,"Do all staff complete cybersecurity training annually",null,null,null,null,null,null,null,"Select Yes/No",null,"Specify name of relevant document"]
[null,13,"Has a penetration test been completed in the last year",null,null,null,null,null,null,null,"Select Yes/No"]
[null,14,"Has the company segregated the enterprise network into multiple, separate trust zones",null,null,null,null,null,null,null,"Select Yes/No"]
[null,15,"Is there a process detailing IT service management controls (i.e., change, release and configuration management)",null,null,null,null,null,null,null,"Select Yes/No",null,"Specify name of relevant document"]
[null,16,"Does the company document and enforce security configuration standards of all network devices",null,null,null,null,null,null,null,"Select Yes/No"]
[null,"Detect"]
[null,{"$f":"B69+1","v":17},"Is there a process enabling the review of threat intelligence and vulnerability alerting data",null,null,null,null,null,null,null,"Select Yes/No"]
[null,{"$f":"B71+1","v":18},"Is there a process in place to monitor information systems and assets to identify cybersecurity events ",null,null,null,null,null,null,null,"Select Yes/No"]
[null,19,"The company centrally stores and archives security event logs",null,null,null,null,null,null,null,"Select Yes/No"]
[null,"Respond"]
[null,{"$f":"B73+1","v":20},"Is there a documented security incident response plan in place, including internal and external communications and crisis management ",null,null,null,null,null,null,null,"Select Yes/No",null,"Specify name of relevant document"]
[null,{"$f":"B75+1","v":21},"In the event of a major incident, is the company contracted to a \"4th line\" IT security expert service (for example a managed security services provider)  ",null,null,null,null,null,null,null,"Select Yes/No"]
[null,"Recover"]
[null,{"$f":"B76+1","v":22},"Has a test of the business continuity and IT disaster recovery plans been performed during the past 12 months ",null,null,null,null,null,null,null,"Select Yes/No"]
[null,{"$f":"B78+1","v":23},"Has the organisation been subject to a significant cyber incident during the past 12 months",null,null,null,null,null,null,null,"Select Yes/No"]
[]
[null,"SECTION C - Technical Security Controls - Answer YES/NO"]
[null,"Technical controls summary"]
[null,1,"Antivirus software is installed on all Microsoft Operating System endpoints",null,null,null,null,null,null,null,"Select Yes/No"]
[null,{"$f":"B83+1","v":2},"Is there an endpoint Advanced Persistent Threat (APT) control in place ",null,null,null,null,null,null,null,"Select Yes/No"]
[null,3,"Are Data Loss Prevention (DLP) controls in place (i.e., to prevent unauthorised data leaving the enterprise)\n\n",null,null,null,null,null,null,null,"Select Yes/No"]
[null,4,"Is INTERNAL vulnerability scanning conducted (and what is the frequency)",null,null,null,null,null,null,null,"Select Yes/No",null,"Select Frequency"]
[null,{"$f":"B86+1","v":5},"Is EXTERNAL vulnerability scanning conducted (and what is the frequency)",null,null,null,null,null,null,null,"Select Yes/No",null,"Select Frequency"]
[null,{"$f":"B87+1","v":6},"Are there regular (six monthly minimum) firewall ruleset reviews",null,null,null,null,null,null,null,"Select Yes/No"]
[null,7,"Is there a network perimeter Intrusion Detection or Prevention (IDS/IPS) control",null,null,null,null,null,null,null,"Select Yes/No"]
[null,8,"Is there Distributed Denial of Service (DDOS) defence in place for internet gateways",null,null,null,null,null,null,null,"Select Yes/No"]
[]
[null,{"$f":"B90+1","v":9},"Does the Insurance Manager manage/support any of the managed entities’ IT services?",null,null,null,null,null,null,null,"Select Yes/No"]
[null,null,"If yes, enter companies names below:"]
[null,null,1]
[null,null,2]
[null,null,3]
[null,null,4]
[null,null,5]
[null,null,6]
[null,null,7]
[null,null,8]
[null,null,9]
[null,null,10]
[null,null,11]
[null,null,12]
[null,null,13]
[null,null,14]
[null,null,15]
[null,null,16]
[null,null,17]
[null,null,18]
[null,null,19]
[null,null,20]
[null,null,21]
[null,null,22]
[null,null,23]
[null,null,24]
[null,null,25]

{"sheet":"AML-ATF Questionnaire","index":6,"n_rows":758,"n_cols":17,"rows_kept":758,"cut":false,"hidden":false,"merged":[[33,3,33,4],[1,2,1,4],[2,2,2,3],[8,2,8,4],[25,3,25,5],[26,3,26,4],[27,3,27,4],[28,3,28,4],[29,3,29,4],[30,3,30,4],[31,3,31,4],[32,3,32,4],[76,2,76,4],[34,3,34,4],[35,3,35,4],[54,2,54,6],[57,2,57,4],[66,2,66,4],[67,2,67,4],[68,2,68,4],[69,2,69,4],[70,2,70,4],[71,2,71,4],[73,2,73,6],[627,8,627,9],[80,2,80,12],[91,2,91,14],[93,4,93,8],[340,2,340,6],[342,2,342,6],[344,2,344,8],[594,2,594,6],[596,2,596,4],[600,2,600,4],[603,2,603,4],[626,8,626,9],[697,8,697,10],[629,8,629,9],[630,8,630,9],[652,2,656,8],[665,2,669,8],[679,2,679,6],[680,2,680,6],[683,2,683,6],[685,2,685,6],[688,2,688,6],[690,2,690,6],[697,2,697,6],[722,3,722,11],[703,2,703,5],[704,2,704,5],[705,2,705,5],[707,2,707,8],[709,2,711,11],[716,2,716,12],[717,2,717,11],[718,3,718,11],[719,3,719,11],[720,3,720,11],[721,3,721,11],[736,3,736,11],[723,3,723,11],[724,3,724,11],[725,3,725,11],[726,3,726,11],[727,3,727,11],[728,3,728,11],[729,3,729,11],[730,3,730,11],[732,2,732,12],[734,3,734,11],[735,3,735,11],[750,3,750,11],[737,3,737,11],[738,3,738,11],[740,2,740,12],[742,3,742,11],[743,3,743,11],[744,3,744,11],[745,3,745,11],[746,3,746,11],[747,3,747,11],[748,3,748,11],[749,3,749,11],[752,2,752,12],[754,3,754,11],[755,3,755,11],[756,3,756,11],[757,3,757,11]]}
[null,"SCHEDULE III - ANTI-MONEY LAUNDERING/ANTI-TERRORIST FINANCING (AML-ATF) QUESTIONNAIRE"]
[null,null,{"$f":"'Company Information'!C3","v":"Enter Insurance Manager Name"}]
[null,null,"2021-12-31"]
[]
[null,null,"Section A - Client/Customer Numbers"]
[]
[null,null,"1. Total number of insurers managed ",null,null,null,{"$f":"'Insurance Manager Return'!D164","v":0}]
[]
[null,null,"2. Do you risk rate insurers for Money Laundering/Terrorist Finanancing (ML/TF) risk?",null,null,null,"Select Yes/No"]
[]
[null,null,"3. The number of insurers in the following risk assessment category—"]
[null,null,null,null,null,null,"Number of insurers"]
[null,null,null,null,"Low risk"]
[null,null,null,null,"Medium risk"]
[null,null,null,null,"High risk"]
[null,null,null,null,"Unknown"]
[null,null,null,null,"Total",null,{"$f":"SUM(G13:G16)","v":0}]
[]
[null,null,"Section B - Products/Services"]
[]
[null,null,"1. Do you manage any direct long-term insurers?",null,null,null,"(please select)"]
[]
[null,null,"       1.1 If yes, how many?"]
[]
[null,null,"       1.2 Please list the names of direct long-term insurers managed."]
[null,null,null,null,null,null,"Class"]
[null,null,1,null,null,null,"(please select)"]
[null,null,2,null,null,null,"(please select)"]
[null,null,3,null,null,null,"(please select)"]
[null,null,4,null,null,null,"(please select)"]
[null,null,5,null,null,null,"(please select)"]
[null,null,6,null,null,null,"(please select)"]
[null,null,7,null,null,null,"(please select)"]
[null,null,8,null,null,null,"(please select)"]
[null,null,9,null,null,null,"(please select)"]
[null,null,10,null,null,null,"(please select)"]
[]
[null,null,"1.3 Please confirm the services provided to direct long-term insurers",null,null,null,null,null,"Number of entities"]
[null,null,"\tPrincipalrRepresentative\r\n",null,null,null,"(please select)"]
[null,null,"Board member",null,null,null,"(please select)"]
[null,null,"Senior officer",null,null,null,"(please select)"]
[null,null,"Accounting",null,null,null,"(please select)"]
[null,null,"Preparation of prudential/ statutory financial return",null,null,null,"(please select)"]
[null,null,"Underwriting",null,null,null,"(please select)"]
[null,null,"Claims handling",null,null,null,"(please select)"]
[null,null,"Risk management",null,null,null,"(please select)"]
[null,null,"Investment",null,null,null,"(please select)"]
[null,null,"Treasury",null,null,null,"(please select)"]
[null,null,"Actuarial functions",null,null,null,"(please select)"]
[null,null,"Internal audit",null,null,null,"(please select)"]
[null,null,"\tCompliance\r\n",null,null,null,"(please select)"]
[null,null,"Other (if other, disclose below)",null,null,null,"(please select)"]
[]
[]
[null,null,"2. Please confirm if your company has been engaged to provide outsourcing services (particular to AML/ATF activities) on behalf of any direct long-term insurers?",null,null,null,null,null,"Select Yes/No"]
[]
[null,null,"2.1 If yes, please provide entity names"]
[]
[]
[null,null,"3. Are there corporate service provider-specific services offered to any managed entities?"]
[null,null,"Services listed are in accordance with Financial Action Task Force Recommendation 22"]
[]
[null,null,"       3.1 If yes, how many?"]
[]
[null,null,null,null,null,null,null,null,"Number of entities"]
[null,null,"Acting as formation agent?",null,null,null,"(please select)"]
[null,null,"Acting as (or arranging for another person to act as) a director or secretary of a company, a partner of a partnership or a similar position in relation to other legal person?",null,null,null,"(please select)"]
[null,null,"Providing registered office, business address or accommodation, correspondence or administrative address for a company, a partnership or any other legal person or arrangement?",null,null,null,"(please select)"]
[null,null,"Acting as (or arranging for another person to act as) a trustee of an express trust or performing the equivalent function for another legal arrangement?",null,null,null,"(please select)"]
[null,null,"Acting as (or arranging for another person to act as) a nominee shareholder for another person?",null,null,null,"(please select)"]
[null,null,"Other (if other, disclose below)",null,null,null,"(please select)"]
[]
[]
[null,null,"4. Does your company file Suspicous Activity Reports (SAR) on behalf of any other BMA licensed or registered entities?",null,null,null,null,null,"Select Yes/No"]
[]
[null,null,"4.1 If yes, please list all entities on behalf of which you can file a SAR"]
[]
[]
[null,null,"Section C - Delivery Channel"]
[]
[null,null,"1. The number of business relationships onboarded for the last 12 months by each of the following methods—"]
[null,null,null,null,"Number of business relationships"]
[null,null,null,"Face to face with clients"]
[null,null,null,"Via intermediary"]
[null,null,null,"By phone, email, fax or post"]
[null,null,null,"Remotely (via video conferencing) "]
[null,null,null,"Other (provide examples)"]
[null,null,null,"Total",{"$f":"SUM(E83:E87)","v":0}]
[]
[null,null,"Section D - Geography (including sub-sections for customer, transactions and Politically Exposed Persons (PEP))"]
[]
[null,null,"1. Country of residence of Ultimate Beneficial Owners (UBO) of managed entities"]
[null,null,"Zones listed below are in accordance with the Bermuda Solvency Capital Requirement (BSCR) under the Zone Categorisation and BSCR Rating Schedule"]
[null,null,null,null,"Number of UBOs"]
[null,null,"Country of Residence",null,"Direct ",null,"All Other",null,"PEPs"]
[null,null,"of UBOs",null,"Long-term Insurers",null,"managed entities"]
[null,null,"Afghanistan"]
[null,null,"Aland Islands"]
[null,null,"Albania"]
[null,null,"Algeria"]
[null,null,"American Samoa"]
[null,null,"Andorra"]
[null,null,"Angola"]
[null,null,"Anguilla"]
[null,null,"Antigua and Barbuda"]
[null,null,"Argentina"]
[null,null,"Armenia"]
[null,null,"Aruba"]
[null,null,"Australia"]
[null,null,"Austria"]
[null,null,"Azerbaijan"]
[null,null,"Bahamas"]
[null,null,"Bahrain"]
[null,null,"Bangladesh"]
[null,null,"Barbados"]
[null,null,"Belarus"]
[null,null,"Belgium"]
[null,null,"Belize"]
[null,null,"Benin"]
[null,null,"Bermuda"]
[null,null,"Bhutan"]
[null,null,"Bolivia (Plurinational State of)"]
[null,null,"Bonaire, Sint Eustatius and Saba"]
[null,null,"Bosnia and Herzegovina"]
[null,null,"Botswana"]
[null,null,"Brazil"]
[null,null,"British Virgin Islands"]
[null,null,"Brunei Darussalam"]
[null,null,"Bulgaria"]
[null,null,"Burkina Faso"]
[null,null,"Burundi"]
[null,null,"Cabo Verde (Cape Verde) "]
[null,null,"Cambodia"]
[null,null,"Cameroon"]
[null,null,"Canada"]
[null,null,"Cayman Islands"]
[null,null,"Central African Republic"]
[null,null,"Chad"]
[null,null,"Chile"]
[null,null,"China"]
[null,null,"China, Hong Kong SAR"]
[null,null,"China, Macao SAR "]
[null,null,"Colombia"]
[null,null,"Comoros"]
[null,null,"Congo"]
[null,null,"Cook Islands"]
[null,null,"Costa Rica"]
[null,null,"Cote d' Ivoire"]
[null,null,"Croatia"]
[null,null,"Cuba"]
[null,null,"Curacao"]
[null,null,"Cyprus"]
[null,null,"Czech Republic"]
[null,null,"Democratic People's Republic of Korea (North Korea) "]
[null,null,"Democratic Republic of the Congo"]
[null,null,"Denmark"]
[null,null,"Djibouti"]
[null,null,"Dominica"]
[null,null,"Dominican Republic"]
[null,null,"Ecuador"]
[null,null,"Egypt"]
[null,null,"El Salvador"]
[null,null,"Equatorial Guinea"]
[null,null,"Eritrea"]
[null,null,"Estonia"]
[null,null,"Eswatini (Kingdom of Swaziland)"]
[null,null,"Ethiopia"]
[null,null,"Falkland Islands"]
[null,null,"Faroe Islands"]
[null,null,"Fiji"]
[null,null,"Finland"]
[null,null,"France"]
[null,null,"French Guiana"]
[null,null,"French Polynesia"]
[null,null,"Gabon"]
[null,null,"Gambia (Republic of The) "]
[null,null,"Georgia"]
[null,null,"Germany"]
[null,null,"Ghana"]
[null,null,"Gibraltar"]
[null,null,"Greece"]
[null,null,"Greenland"]
[null,null,"Grenada"]
[null,null,"Guadeloupe"]
[null,null,"Guam"]
[null,null,"Guatemala"]
[null,null,"Guernsey"]
[null,null,"Guinea"]
[null,null,"Guinea-Bissau"]
[null,null,"Guyana"]
[null,null,"Haiti"]
[null,null,"Holy See "]
[null,null,"Honduras"]
[null,null,"Hungary"]
[null,null,"Iceland"]
[null,null,"India"]
[null,null,"Indonesia"]
[null,null,"Iran (Islamic Republic of) "]
[null,null,"Iraq"]
[null,null,"Ireland "]
[null,null,"Isle of Man"]
[null,null,"Israel"]
[null,null,"Italy"]
[null,null,"Jamaica "]
[null,null,"Japan"]
[null,null,"Jersey"]
[null,null,"Jordan"]
[null,null,"Kazakhstan"]
[null,null,"Kenya"]
[null,null,"Kiribati"]
[null,null,"Kuwait"]
[null,null,"Kyrgyzstan"]
[null,null,"Lao People's Democratic Republic"]
[null,null,"Latvia"]
[null,null,"Lebanon"]
[null,null,"Lesotho"]
[null,null,"Liberia"]
[null,null,"Libya"]
[null,null,"Liechtenstein"]
[null,null,"Lithuania"]
[null,null,"Luxembourg"]
[null,null,"Madagascar"]
[null,null,"Malawi"]
[null,null,"Malaysia"]
[null,null,"Maldives"]
[null,null,"Mali"]
[null,null,"Malta"]
[null,null,"Marshall Islands"]
[null,null,"Martinique"]
[null,null,"Mauritania"]
[null,null,"Mauritius"]
[null,null,"Mayotte"]
[null,null,"Mexico"]
[null,null,"Micronesia (Federated States of) "]
[null,null,"Monaco"]
[null,null,"Mongolia"]
[null,null,"Montenegro"]
[null,null,"Montserrat"]
[null,null,"Morocco"]
[null,null,"Mozambique"]
[null,null,"Myanmar"]
[null,null,"Namibia"]
[null,null,"Nauru"]
[null,null,"Nepal"]
[null,null,"Netherlands"]
[null,null,"New Caledonia"]
[null,null,"New Zealand"]
[null,null,"Nicaragua"]
[null,null,"Niger"]
[null,null,"Nigeria"]
[null,null,"Niue"]
[null,null,"Norfolk Island"]
[null,null,"North Macedonia "]
[null,null,"Northern Mariana Islands"]
[null,null,"Norway"]
[null,null,"Oman"]
[null,null,"Pakistan"]
[null,null,"Palau"]
[null,null,"Panama"]
[null,null,"Papua New Guinea"]
[null,null,"Paraguay"]
[null,null,"Peru"]
[null,null,"Philippines"]
[null,null,"Pitcairn"]
[null,null,"Poland"]
[null,null,"Portugal"]
[null,null,"Puerto Rico "]
[null,null,"Qatar"]
[null,null,"Republic of Korea (South Korea) "]
[null,null,"Republic of Moldova"]
[null,null,"Reunion"]
[null,null,"Romania"]
[null,null,"Russian Federation"]
[null,null,"Rwanda"]
[null,null,"Saint Barthelemy (St. Barts) "]
[null,null,"Saint Helena"]
[null,null,"Saint Kitts and Nevis "]
[null,null,"Saint Lucia "]
[null,null,"Saint Martin "]
[null,null,"Saint Pierre and Miquelon"]
[null,null,"Saint Vincent and The Grenadines "]
[null,null,"Samoa"]
[null,null,"San Marino"]
[null,null,"Sao Tome and Principe"]
[null,null,"Sark"]
[null,null,"Saudi Arabia"]
[null,null,"Senegal"]
[null,null,"Serbia"]
[null,null,"Seychelles"]
[null,null,"Sierra Leone"]
[null,null,"Singapore"]
[null,null,"Sint Maarten"]
[null,null,"Slovakia"]
[null,null,"Slovenia"]
[null,null,"Solomon Islands"]
[null,null,"Somalia"]
[null,null,"South Africa"]
[null,null,"South Sudan"]
[null,null,"Spain"]
[null,null,"Sri Lanka"]
[null,null,"State of Palestine "]
[null,null,"Sudan"]
[null,null,"Suriname"]
[null,null,"Svalbard, Jan Mayen"]
[null,null,"Sweden"]
[null,null,"Switzerland"]
[null,null,"Syrian Arab Republic "]
[null,null,"Taiwan"]
[null,null,"Tajikistan"]
[null,null,"Thailand"]
[null,null,"Timor-Leste"]
[null,null,"Togo"]
[null,null,"Tokelau"]
[null,null,"Tonga"]
[null,null,"Trinidad and Tobago"]
[null,null,"Tunisia"]
[null,null,"Turkey"]
[null,null,"Turkmenistan"]
[null,null,"Turks & Caicos Islands"]
[null,null,"Tuvalu"]
[null,null,"Uganda"]
[null,null,"Ukraine"]
[null,null,"United Arab Emirates"]
[null,null,"United Kingdom of Great Britan and Northern Ireland "]
[null,null,"United Republic of Tanzania"]
[null,null,"United States of America"]
[null,null,"Uruguay"]
[null,null,"US Virgin Islands"]
[null,null,"Uzbekistan"]
[null,null,"Vanuatu"]
[null,null,"Venezuela, Bolivarian Republic of "]
[null,null,"Vietnam "]
[null,null,"Wallis & Futuna Islands"]
[null,null,"Western Sahara"]
[null,null,"Yemen"]
[null,null,"Zambia"]
[null,null,"Zimbabwe"]
[null,null,"Total",null,{"$f":"SUM(E97:E337)","v":0},null,{"$f":"SUM(G97:G337)","v":0},null,{"$f":"SUM(I97:I337)","v":0}]
[]
[]
[null,null,"2. Do you identify PEPs",null,null,null,null,null,"Select Yes/No"]
[]
[null,null,"3. Please confirm if the company performs transaction monitoring (reference the Insurance Manager return question (c)) in particular claims handling and treasury services.",null,null,null,null,null,"Select Yes/No"]
[]
[null,null,"4. If claims handling services are provided for direct long-term insurers (reference question 1.3 in section B), please provide the following information:"]
[]
[null,null,"Country of residence",null,"Value of",null,"Number of"]
[null,null,"of beneficiaries",null,"claims paid in USD",null,"policies"]
[null,null,"Afghanistan"]
[null,null,"Aland Islands"]
[null,null,"Albania"]
[null,null,"Algeria"]
[null,null,"American Samoa"]
[null,null,"Andorra"]
[null,null,"Angola"]
[null,null,"Anguilla"]
[null,null,"Antigua and Barbuda"]
[null,null,"Argentina"]
[null,null,"Armenia"]
[null,null,"Aruba"]
[null,null,"Australia"]
[null,null,"Austria"]
[null,null,"Azerbaijan"]
[null,null,"Bahamas"]
[null,null,"Bahrain"]
[null,null,"Bangladesh"]
[null,null,"Barbados"]
[null,null,"Belarus"]
[null,null,"Belgium"]
[null,null,"Belize"]
[null,null,"Benin"]
[null,null,"Bermuda"]
[null,null,"Bhutan"]
[null,null,"Bolivia (Plurinational State of)"]
[null,null,"Bonaire, Sint Eustatius and Saba"]
[null,null,"Bosnia and Herzegovina"]
[null,null,"Botswana"]
[null,null,"Brazil"]
[null,null,"British Virgin Islands"]
[null,null,"Brunei Darussalam"]
[null,null,"Bulgaria"]
[null,null,"Burkina Faso"]
[null,null,"Burundi"]
[null,null,"Cabo Verde (Cape Verde) "]
[null,null,"Cambodia"]
[null,null,"Cameroon"]
[null,null,"Canada"]
[null,null,"Cayman Islands"]
[null,null,"Central African Republic"]
[null,null,"Chad"]
[null,null,"Chile"]
[null,null,"China"]
[null,null,"China, Hong Kong SAR"]
[null,null,"China, Macao SAR "]
[null,null,"Colombia"]
[null,null,"Comoros"]
[null,null,"Congo"]
[null,null,"Cook Islands"]
[null,null,"Costa Rica"]
[null,null,"Cote d' Ivoire"]
[null,null,"Croatia"]
[null,null,"Cuba"]
[null,null,"Curacao"]
[null,null,"Cyprus"]
[null,null,"Czech Republic"]
[null,null,"Democratic People's Republic of Korea (North Korea) "]
[null,null,"Democratic Republic of the Congo"]
[null,null,"Denmark"]
[null,null,"Djibouti"]
[null,null,"Dominica"]
[null,null,"Dominican Republic"]
[null,null,"Ecuador"]
[null,null,"Egypt"]
[null,null,"El Salvador"]
[null,null,"Equatorial Guinea"]
[null,null,"Eritrea"]
[null,null,"Estonia"]
[null,null,"Eswatini (Kingdom of Swaziland)"]
[null,null,"Ethiopia"]
[null,null,"Falkland Islands"]
[null,null,"Faroe Islands"]
[null,null,"Fiji"]
[null,null,"Finland"]
[null,null,"France"]
[null,null,"French Guiana"]
[null,null,"French Polynesia"]
[null,null,"Gabon"]
[null,null,"Gambia (Republic of The) "]
[null,null,"Georgia"]
[null,null,"Germany"]
[null,null,"Ghana"]
[null,null,"Gibraltar"]
[null,null,"Greece"]
[null,null,"Greenland"]
[null,null,"Grenada"]
[null,null,"Guadeloupe"]
[null,null,"Guam"]
[null,null,"Guatemala"]
[null,null,"Guernsey"]
[null,null,"Guinea"]
[null,null,"Guinea-Bissau"]
[null,null,"Guyana"]
[null,null,"Haiti"]
[null,null,"Holy See "]
[null,null,"Honduras"]
[null,null,"Hungary"]
[null,null,"Iceland"]
[null,null,"India"]
[null,null,"Indonesia"]
[null,null,"Iran (Islamic Republic of) "]
[null,null,"Iraq"]
[null,null,"Ireland "]
[null,null,"Isle of Man"]
[null,null,"Israel"]
[null,null,"Italy"]
[null,null,"Jamaica "]
[null,null,"Japan"]
[null,null,"Jersey"]
[null,null,"Jordan"]
[null,null,"Kazakhstan"]
[null,null,"Kenya"]
[null,null,"Kiribati"]
[null,null,"Kuwait"]
[null,null,"Kyrgyzstan"]
[null,null,"Lao People's Democratic Republic"]
[null,null,"Latvia"]
[null,null,"Lebanon"]
[null,null,"Lesotho"]
[null,null,"Liberia"]
[null,null,"Libya"]
[null,null,"Liechtenstein"]
[null,null,"Lithuania"]
[null,null,"Luxembourg"]
[null,null,"Madagascar"]
[null,null,"Malawi"]
[null,null,"Malaysia"]
[null,null,"Maldives"]
[null,null,"Mali"]
[null,null,"Malta"]
[null,null,"Marshall Islands"]
[null,null,"Martinique"]
[null,null,"Mauritania"]
[null,null,"Mauritius"]
[null,null,"Mayotte"]
[null,null,"Mexico"]
[null,null,"Micronesia (Federated States of) "]
[null,null,"Monaco"]
[null,null,"Mongolia"]
[null,null,"Montenegro"]
[null,null,"Montserrat"]
[null,null,"Morocco"]
[null,null,"Mozambique"]
[null,null,"Myanmar"]
[null,null,"Namibia"]
[null,null,"Nauru"]
[null,null,"Nepal"]
[null,null,"Netherlands"]
[null,null,"New Caledonia"]
[null,null,"New Zealand"]
[null,null,"Nicaragua"]
[null,null,"Niger"]
[null,null,"Nigeria"]
[null,null,"Niue"]
[null,null,"Norfolk Island"]
[null,null,"North Macedonia "]
[null,null,"Northern Mariana Islands"]
[null,null,"Norway"]
[null,null,"Oman"]
[null,null,"Pakistan"]
[null,null,"Palau"]
[null,null,"Panama"]
[null,null,"Papua New Guinea"]
[null,null,"Paraguay"]
[null,null,"Peru"]
[null,null,"Philippines"]
[null,null,"Pitcairn"]
[null,null,"Poland"]
[null,null,"Portugal"]
[null,null,"Puerto Rico "]
[null,null,"Qatar"]
[null,null,"Republic of Korea (South Korea) "]
[null,null,"Republic of Moldova"]
[null,null,"Reunion"]
[null,null,"Romania"]
[null,null,"Russian Federation"]
[null,null,"Rwanda"]
[null,null,"Saint Barthelemy (St. Barts) "]
[null,null,"Saint Helena"]
[null,null,"Saint Kitts and Nevis "]
[null,null,"Saint Lucia "]
[null,null,"Saint Martin "]
[null,null,"Saint Pierre and Miquelon"]
[null,null,"Saint Vincent and The Grenadines "]
[null,null,"Samoa"]
[null,null,"San Marino"]
[null,null,"Sao Tome and Principe"]
[null,null,"Sark"]
[null,null,"Saudi Arabia"]
[null,null,"Senegal"]
[null,null,"Serbia"]
[null,null,"Seychelles"]
[null,null,"Sierra Leone"]
[null,null,"Singapore"]
[null,null,"Sint Maarten"]
[null,null,"Slovakia"]
[null,null,"Slovenia"]
[null,null,"Solomon Islands"]
[null,null,"Somalia"]
[null,null,"South Africa"]
[null,null,"South Sudan"]
[null,null,"Spain"]
[null,null,"Sri Lanka"]
[null,null,"State of Palestine "]
[null,null,"Sudan"]
[null,null,"Suriname"]
[null,null,"Svalbard, Jan Mayen"]
[null,null,"Sweden"]
[null,null,"Switzerland"]
[null,null,"Syrian Arab Republic "]
[null,null,"Taiwan"]
[null,null,"Tajikistan"]
[null,null,"Thailand"]
[null,null,"Timor-Leste"]
[null,null,"Togo"]
[null,null,"Tokelau"]
[null,null,"Tonga"]
[null,null,"Trinidad and Tobago"]
[null,null,"Tunisia"]
[null,null,"Turkey"]
[null,null,"Turkmenistan"]
[null,null,"Turks & Caicos Islands"]
[null,null,"Tuvalu"]
[null,null,"Uganda"]
[null,null,"Ukraine"]
[null,null,"United Arab Emirates"]
[null,null,"United Kingdom of Great Britan and Northern Ireland "]
[null,null,"United Republic of Tanzania"]
[null,null,"United States of America"]
[null,null,"Uruguay"]
[null,null,"US Virgin Islands"]
[null,null,"Uzbekistan"]
[null,null,"Vanuatu"]
[null,null,"Venezuela, Bolivarian Republic of "]
[null,null,"Vietnam "]
[null,null,"Wallis & Futuna Islands"]
[null,null,"Western Sahara"]
[null,null,"Yemen"]
[null,null,"Zambia"]
[null,null,"Zimbabwe"]
[null,null,"Total",null,{"$f":"SUM(E349:E589)","v":0},null,{"$f":"SUM(G349:G589)","v":0}]
[]
[]
[null,null,"Section E - Reporting"]
[]
[null,null,"1. Is your company registered with GoAML at www.fia.bm",null,null,null,null,null,"Select Yes/No"]
[null,null,"1.1 If yes, under what name and when?",null,null,null,null,null,null,null,null,null,null,null,null,null,"(please select)"]
[null,null,null,null,null,null,null,null,"(please select)",null,null,null,null,null,null,null,{"$f":"G608","v":2021}]
[null,null,null,null,null,null,null,null,null,null,null,null,null,null,null,null,{"$f":"Q597-1","v":2020}]
[null,null,"1.2 If you answered no to 1., do you have access to GoAML through another registration?",null,null,null,null,null,"Select Yes/No",null,null,null,null,null,null,null,{"$f":"Q598-1","v":2019}]
[null,null,"1.3 Under what name and how are you connected?",null,null,null,null,null,null,null,null,null,null,null,null,null,2018]
[null,null,null,null,null,null,null,null,null,null,null,null,null,null,null,null,2017]
[null,null,null,null,null,null,null,null,null,null,null,null,null,null,null,null,2016]
[null,null,"1.4 if you answered no to 1. and 1.2, who would file a SAR on your behalf?",null,null,null,null,null,null,null,null,null,null,null,null,null,2015]
[null,null,null,null,null,null,null,null,null,null,null,null,null,null,null,null,2014]
[null,null,null,null,null,null,null,null,null,null,null,null,null,null,null,null,{"$f":"\"Prior \"&Q604","v":"Prior 2014"}]
[null,null,"2. How many SARs have been filed?"]
[null,null,null,null,null,null,null,null,"Internal",null,null,null,"With FIA"]
[null,null,null,null,null,null,{"$f":"YEAR($C$3)","v":2021},null,null,null,{"$f":"YEAR($C$3)","v":2021}]
[null,null,null,null,null,null,{"$f":"G608-1","v":2020},null,null,null,{"$f":"K608-1","v":2020}]
[null,null,null,null,null,null,{"$f":"G609-1","v":2019},null,null,null,{"$f":"K609-1","v":2019}]
[null,null,null,null,null,null,2018,null,null,null,2018]
[null,null,null,null,null,null,"Total",null,{"$f":"SUM(I608:I611)","v":0},null,"Total",null,{"$f":"SUM(M608:M611)","v":0}]
[]
[null,null,"Section F - Training/Personnel"]
[]
[null,null,"1. Please confirm if the company provides employees with training related to ML/TF. ",null,null,null,null,null,null,null,null,null,"Select Yes/No"]
[null,null,"If yes, confirm if:"]
[null,null,"(a) ML/TF training is included in the induction programme of new employees",null,null,null,null,null,null,null,null,null,"Select Yes/No"]
[null,null,"(b) Is the ML/TF training provided specific to the business of the Insurance Manager",null,null,null,null,null,null,null,null,null,"Select Yes/No"]
[null,null,"(c) If no, is the ML/TF training of general application",null,null,null,null,null,null,null,null,null,"Select Yes/No"]
[null,null,"(d) The frequency that employees must undertake ML/TF training",null,null,null,null,null,null,null,null,null,"Select Years"]
[]
[null,null,"2. How many persons are employed by the company?"]
[null,null,null,"Full time"]
[null,null,null,"Part time"]
[]
[null,null,"2.1. Please confirm the name and work arrangement of your compliance officer ",null,null,null,null,"Name: ",null,null,null,null,"(please select)"]
[null,null,"    2.1.1. Please give the compliance officer's contact e-mail address",null,null,null,null,"e-mail:"]
[]
[null,null,"2.2. Please confirm the name and work arrangement of your reporting officer",null,null,null,null,"Name: ",null,null,null,null,"(please select)"]
[null,null,"    2.2.1. Please give the reporting officer's contact e-mail address",null,null,null,null,"e-mail:"]
[]
[null,null,"3.  Please indicate what actions are undertaken when recruiting staff"]
[null,null,null,"Verify name",null,null,null,null,"(please select)"]
[null,null,null,"Verify residential address",null,null,null,null,"(please select)"]
[null,null,null,"Check if the individual should be considered as PEP",null,null,null,null,"(please select)"]
[null,null,null,"Check individual against sanctions lists",null,null,null,null,"(please select)"]
[null,null,null,"Check for any negative press against the individual",null,null,null,null,"(please select)"]
[null,null,null,"Confirm employment history",null,null,null,null,"(please select)"]
[null,null,null,"Confirm references",null,null,null,null,"(please select)"]
[null,null,null,"Request details on any regulatory action taken against the individual",null,null,null,null,"(please select)"]
[null,null,null,"Request details of any criminal convictions",null,null,null,null,"(please select)"]
[]
[null,null,"4. Confirm if the company’s compliance officer is a member of the management of the company",null,null,null,null,null,null,null,"Select Yes/No"]
[]
[null,null,"Section G - AML/ATF Controls"]
[]
[null,null,"1. The company has AML/ATF controls that are specific for direct long-term insurers",null,null,null,null,null,"(please select)"]
[null,null,"2. The company has AML/ATF controls that are specific for all other managed entities",null,null,null,null,null,"(please select)"]
[null,null,"3. The company has other specific AML/ATF controls ",null,null,null,null,null,"(please select)"]
[]
[null,null,"If you have answered 'Yes' to 3. please describe briefly these AML/ATF controls"]
[]
[]
[]
[]
[]
[]
[null,null,"4. Please confirm the frequency with which it rates the AML/ATF risks of its insurers.",null,null,null,null,null,"Select Years"]
[]
[null,null,"4.1 Please confirm the frequency with which it rates the AML/ATF risks of its insurers by the applicable risk rating"]
[null,null,null,null,"Very high",null,"High",null,"Medium",null,"Low"]
[null,null,null,null,"Select Years",null,"Select Years",null,"Select Years",null,"Select Years"]
[]
[null,null,"If the company has a different risk rating method, provide such details and include the methodology as an attachment"]
[]
[]
[]
[]
[]
[]
[null,null,"5. Whether senior management approval is required to approve new business, if the client has been risk rated as— "]
[null,null,null,null,"Low",null,"Medium",null,"High"]
[null,null,null,null,"Select Yes/No",null,"Select Yes/No",null,"Select Yes/No"]
[]
[null,null,"6. If senior management approval is required to retain an existing client, if the client’s risk rating has changed to—"]
[null,null,null,null,"Low",null,"Medium",null,"High"]
[null,null,null,null,"Select Yes/No",null,"Select Yes/No",null,"Select Yes/No"]
[]
[null,null,"7. Please confirm if the policies and procedure manuals of the company relating to AML/ATF are in line with all applicable laws and regulations",null,null,null,null,null,"Select Yes/No"]
[null,null,"7.1 Please confirm the frequency for which the company's  AML/ATF policies and procedures are reviewed",null,null,null,null,null,"Select Years"]
[null,null,"(please attach a copy of the AML/ATF policies and procedure if they have been updated in the last 12 months to the Attachments tab)"]
[]
[null,null,"8. The date the company last performed an entity-wide AML/ATF risk assessment."]
[]
[null,null,"9. The date the company last conducted an independent audit of its AML/ATF programme "]
[null,null,"    (please attach a copy of the latest independent audit to the Attachments tab)"]
[]
[null,null,"10. The date of the last compliance/reporting officer report on the operation and effectiveness of the company AML/ATF policies, procedures and controls"]
[null,null," "]
[null,null,"11. Does the company document the ML/TF risks associated with a product/service prior to launch",null,null,null,null,null,"Select Yes/No"]
[]
[null,null,"Section H - Company Data"]
[]
[null,null,"1. Company data"]
[null,null,"1.1. Is the company a part of group?",null,null,null,null,null,"(please select)"]
[null,null,null,null,null,null,null,null,"Entity Name",null,null,null,"RoC #"]
[null,null,"       1.1.1. If yes, please provide name of the group and Registrar of Companies (RoC) number (where relevant)."]
[]
[null,null,"1.2 Is the company listed on a stock exchange?",null,null,null,null,null,"(please select)"]
[]
[null,null,"If yes, please list the name of the exchange:"]
[]
[]
[]
[]
[]
[null,null,"Please include any additional information/comments which you think might be relevant to this exercise?"]
[]
[]
[]
[]
[]
[null,null,"Section I - Corporate Governance"]
[]
[]
[null,null,"Corporate Governance"]
[null,null,"The Insurance Manager shall confirm the following information (to the best of its knowledge and belief) as at the reporting period:",null,null,null,null,null,null,null,null,null,"Please select from the dropdown menu:"]
[null,null,1,"Whether the powers, roles, responsibilities and accountabilities between the board of directors of the Insurance Manager (board) and senior management are clearly defined, segregated and understood.",null,null,null,null,null,null,null,null,"(please select)"]
[null,null,2,"That the Insurance Manager reviews and monitors the structure, size and composition of the board and recommends improvements to ensure its compliance with the applicable laws, regulations, listing rules and Insurance Manager’s policies. ",null,null,null,null,null,null,null,null,"(please select)"]
[null,null,3,"That the audit and risk management committee of the board or any related board committee, assists the board in fulfilling its oversight function through the review and evaluation of the financial reporting process and adequacy and effectiveness of the system of internal controls; including financial reporting and IT security controls. ",null,null,null,null,null,null,null,null,"(please select)"]
[null,null,4,"Confirmation that the board receives sufficient AML/ATF information to assess and understand the senior executive’s process for evaluating the Insurance Manager's system of internal controls.",null,null,null,null,null,null,null,null,"(please select)"]
[null,null,5,"Whether the board ensures that the Insurance Manager complies with all relevant laws and regulations and endeavours to adopt accepted best business practices.",null,null,null,null,null,null,null,null,"(please select)"]
[null,null,6,"That the board and senior management declare any personal dealings to the human resources and compliance departments when applicable or required.",null,null,null,null,null,null,null,null,"(please select)"]
[null,null,7,"That the board provides oversight to the Insurance Manager with regard to enterprise risk management and identifies key risk areas and key performance indicators and monitors these factors with due diligence.",null,null,null,null,null,null,null,null,"(please select)"]
[null,null,8,"Whether board members ensure there is appropriate oversight by the senior management that is consistent with the Insurance Manager's policies and procedures.",null,null,null,null,null,null,null,null,"(please select)"]
[null,null,9,"Whether the board sets and enforces clear lines of responsibility and accountability throughout the organisation.",null,null,null,null,null,null,null,null,"(please select)"]
[null,null,10,"That, at least annually, the board monitors the senior management’s compliance with policies set by the board and its performance based on approved targets and objectives.",null,null,null,null,null,null,null,null,"(please select)"]
[null,null,11,"That the board receives advice on all major financing transactions, principal agreements and capitalisation requiring board approval and makes appropriate recommendations for their consideration",null,null,null,null,null,null,null,null,"(please select)"]
[null,null,12,"Whether the compliance and audit function are independent of all operational and business functions as far as practicable and have direct lines of communication to the senior management.",null,null,null,null,null,null,null,null,"(please select)"]
[null,null,13,"That the Insurance Manager has instituted policies or procedures to provide for the senior compliance officer to have regular contact with and direct access to the senior management.",null,null,null,null,null,null,null,null,"(please select)"]
[]
[null,null,"Employee Integrity"]
[]
[null,null,14,"Whether the Insurance Manager has established and maintains and operates appropriate procedures in order to be satisfied of the integrity of new employees.",null,null,null,null,null,null,null,null,"(please select)"]
[null,null,15,"That appropriate mechanisms have been established to ensure the protection of the Insurance Manager's relevant employee to report suspicious transactions and other actions to comply with AML/ATF obligations.",null,null,null,null,null,null,null,null,"(please select)"]
[null,null,16,"That adequate procedures or management information systems are in place to provide relevant employees with timely information, which may include information regarding connected accounts or relationships.",null,null,null,null,null,null,null,null,"(please select)"]
[null,null,17,"Whether adequate procedures or document information systems are in place to ensure relevant legal obligations are understood and practiced by relevant employees and adequate guidance and training is provided by the Insurance Manager to employees.",null,null,null,null,null,null,null,null,"(please select)"]
[null,null,18,"Whether the incidences of financial crime committed by relevant employees (e.g., theft, fraud) is low.",null,null,null,null,null,null,null,null,"(please select)"]
[]
[null,null,"Employee Knowledge"]
[]
[null,null,19,"That all relevant employees are aware of the identity of the reporting officer and how to report suspicious activity.",null,null,null,null,null,null,null,null,"(please select)"]
[null,null,20,"Confirm whether training programmes are designed to cover the AML/ATF risks of the Insurance Manager.",null,null,null,null,null,null,null,null,"(please select)"]
[null,null,21,"Whether the Insurance Manager has an appropriate number of suitably trained employees and other resources necessary to implement and operate its AML/ATF programme.",null,null,null,null,null,null,null,null,"(please select)"]
[null,null,22,"Whether relevant employees fully comply with all AML/ATF procedures in respect of customer identification, account monitoring, record-keeping and reporting.",null,null,null,null,null,null,null,null,"(please select)"]
[null,null,23,"That relevant employees are expected to remain vigilant to the possibility of ML/TF.",null,null,null,null,null,null,null,null,"(please select)"]
[null,null,24,"Whether relevant employees who violate any of the AML/ATF regulations and or policies and procedures outlined in the Insurance Manager’s handbook will be subject to disciplinary action.",null,null,null,null,null,null,null,null,"(please select)"]
[null,null,25,"That all relevant employees are required to (at least annually) undertake training to ensure that their knowledge of AML/ATF laws, policies and procedure is current.",null,null,null,null,null,null,null,null,"(please select)"]
[null,null,26,"Whether relevant employees are updated on ML/TF schemes and typologies on a regular basis.",null,null,null,null,null,null,null,null,"(please select)"]
[null,null,27,"That employees are required to declare personal dealings relevant in the jurisdictions that the Insurance Manager operates in on a regular basis (at least annually).",null,null,null,null,null,null,null,null,"(please select)"]
[]
[null,null,"Employee Compliance"]
[]
[null,null,28,"Whether the Insurance Manager ensures that the senior compliance officer is the focal point for the oversight of all activities relating to the prevention and detection of ML/TF.",null,null,null,null,null,null,null,null,"(please select)"]
[null,null,29,"That the senior compliance officer is fully conversant and trained in up-to-date regulatory requirements and ML/TF risks arising from the Insurance Manager’s business.",null,null,null,null,null,null,null,null,"(please select)"]
[null,null,30,"That the board monitors compliance with corporate governance regulations and guidelines.",null,null,null,null,null,null,null,null,"(please select)"]
[null,null,31,"Whether the board supports the senior management’s scope of AML/ATF internal control assessment and receives regular (at least annually) reports from the senior management.",null,null,null,null,null,null,null,null,"(please select)"]

{"sheet":"Sanctions","index":7,"n_rows":21,"n_cols":12,"rows_kept":21,"cut":false,"hidden":false,"merged":[[22,1,24,10],[4,1,4,9],[6,1,6,9],[8,1,8,9],[10,1,10,9],[12,1,12,9],[17,2,17,5],[17,6,17,9],[18,2,18,5],[18,6,18,9],[14,2,14,5],[14,6,14,9],[15,2,15,5],[15,6,15,9],[16,2,16,5],[16,6,16,9]]}
[null,"SCHEDULE IV - SANCTIONS QUESTIONNAIRE"]
[null,{"$f":"'Company Information'!C3","v":"Enter Insurance Manager Name"}]
[]
[]
[null,"1. Does the company screen insurers and beneficiaries (where relevant) to determine if they are subject to measures imposed under the Bermuda sanctions regime?",null,null,null,null,null,null,null,null,null,"Select Yes/No"]
[]
[null,"2. Does the company screen employees to determine if they are subject to measures imposed under the Bermuda sanctions regime?",null,null,null,null,null,null,null,null,null,"Select Yes/No"]
[]
[null,"3. Has the company frozen any assets in the last 12 months under the Bermuda sanctions regime?",null,null,null,null,null,null,null,null,null,"Select Yes/No"]
[]
[null,"3.1 If yes, how many?"]
[]
[null,"3.2 Please provide the following details for those asset freezes from the consolidated list:"]
[]
[null,"Group ID","Name of the designated person as given on the consolidated list",null,null,null,"Name of the person/entity if owned/controlled by a designated person.",null,null,null,"Value of assets"]
[1]
[2]
[3]
[4]
[]
[null,"Please include any additional information/comments that you think might be relevant to this exercise?"]

{"sheet":"Attachments","index":8,"n_rows":13,"n_cols":12,"rows_kept":13,"cut":false,"hidden":false,"merged":[[3,1,3,4],[3,5,3,8],[4,1,4,4],[4,5,4,8],[5,1,5,4],[5,5,5,8],[6,1,6,4],[6,5,6,8],[7,1,7,4],[7,5,7,8],[8,1,8,4],[8,5,8,8],[12,1,12,4],[12,5,12,8],[10,1,10,4],[10,5,10,8],[9,1,9,4],[9,5,9,8],[11,1,11,4],[11,5,11,8]]}
[null,"INSURANCE MANAGER RETURN - ATTACHMENTS"]
[null,{"$f":"'Company Information'!C3","v":"Enter Insurance Manager Name"}]
[]
[null,"Document Name",null,null,null,"File Name",null,null,null,"Attach","View","Remove"]
[1,"Management accounts",null,null,null,"<Attach file>",null,null,null,"Attach","View","Remove"]
[2,"Business plan for the next financial year",null,null,null,"<Attach file>",null,null,null,"Attach","View","Remove"]
[3,"Signed declaration",null,null,null,"<Attach file>",null,null,null,"Attach","View","Remove"]
[4,"Organisational chart",null,null,null,"<Attach file>",null,null,null,"Attach","View","Remove"]
[5,"AML/ATF independent audit",null,null,null,"<Attach file>",null,null,null,"Attach","View","Remove"]
[6,"AML/ATF policies and procedures \n(if updated in the last 12 months)",null,null,null,"<Attach file>",null,null,null,"Attach","View","Remove"]
[7,"List of entities managed - cyber support",null,null,null,"<Attach file>",null,null,null,"Attach","View","Remove"]
[8]
[9]

{"sheet":"FileStorage","index":9,"n_rows":0,"n_cols":0,"rows_kept":0,"cut":false,"hidden":true,"merged":[]}

{"sheet":"Zones","index":10,"n_rows":122,"n_cols":9,"rows_kept":122,"cut":false,"hidden":true,"merged":[]}
["Geographical Zones"]
[]
[null,"Zone 1 - Central and Western Asia"]
[null,null,"Armenia",null,"Azerbaijan",null,"Bahrain",null,"Georgia"]
[null,null,"Iraq",null,"Israel",null,"Jordan",null,"Kazakhstan"]
[null,null,"Kuwait",null,"Kyrgyzstan",null,"Lebanon",null,"Oman"]
[null,null,"Palestine",null,"Qatar",null,"Saudi Arabia",null,"Saudi Arab Republic"]
[null,null,"Tajikistan",null,"Turkey",null,"Turkmenistan",null,"United Arab Emirates"]
[null,null,"Uzbekistan",null,"Yemen"]
[]
[null,"Zone 2 - Eastern Asia"]
[null,null,"China",null,"Hong Kong",null,"Japan",null,"Macao"]
[null,null,"Mongolia",null,"North Korea",null,"South Korea",null,"Taiwan"]
[]
[null,"Zone 3 - South and South-Eastern Asia"]
[null,null,"Afghanistan",null,"Bangladesh",null,"Bhutan",null,"Brunei Darussalam"]
[null,null,"Cambodia",null,"India",null,"Indonesia",null,"Iran"]
[null,null,"Lao PDR",null,"Malaysia",null,"Maldives",null,"Myanmar"]
[null,null,"Nepal",null,"Pakistan",null,"Philippines",null,"Singapore"]
[null,null,"Sri Lanka",null,"Thailand",null,"Timor-Leste",null,"Vietnam"]
[]
[null,"Zone 4 - Oceania"]
[null,null,"American Samoa",null,"Australia",null,"Cook Islands",null,"Fiji"]
[null,null,"French Polynesia",null,"Guam",null,"Kiribati",null,"Marshall Islands"]
[null,null,"Micronesia",null,"Nauru",null,"New Caledonia",null,"New Zealand"]
[null,null,"Niue",null,"Norfolk Island",null,"Northern Mariana Islands",null,"Palau"]
[null,null,"Papua New Guinea",null,"Pitcairn",null,"Samoa",null,"Solomon Islands"]
[null,null,"Tokelau",null,"Tonga",null,"Tuvalu",null,"Vanuatu"]
[null,null,"Wallis and Futuna Islands"]
[]
[null,"Zone 5 - Northern Africa"]
[null,null,"Algeria",null,"Benin",null,"Burkina Faso",null,"Cameroon"]
[null,null,"Cape Verde",null,"Central African Republic",null,"Chad",null,"Cote d' Ivoire"]
[null,null,"Egypt",null,"Gambia",null,"Ghana",null,"Guinea"]
[null,null,"Guinea-Bissau",null,"Liberia",null,"Libya",null,"Mali"]
[null,null,"Mauritania",null,"Morocco",null,"Niger",null,"Nigeria"]
[null,null,"Saint Helena",null,"Senegal",null,"Sierra Leone",null,"Sudan"]
[null,null,"Togo",null,"Tunisia",null,"Western Sahara"]
[]
[null,"Zone 6 - Southern Africa"]
[null,null,"Angola",null,"Botswana",null,"Burundi",null,"Democratic Republic of Congo"]
[null,null,"Comoros",null,"Djibouti",null,"Equatorial Guinea",null,"Eritrea"]
[null,null,"Ethiopia",null,"Gabon",null,"Kenya",null,"Lesotho"]
[null,null,"Madagascar",null,"Malawi",null,"Mauritius",null,"Mayotte"]
[null,null,"Mozambique",null,"Namibia",null,"Republic of Congo",null,"Reunion"]
[null,null,"Rwanda",null,"Sao Tome and Principe",null,"Seychelles",null,"Somalia"]
[null,null,"South Africa",null,"Swaziland",null,"Uganda",null,"United Republic of Tanzania"]
[null,null,"Zambia",null,"Zimbabwe"]
[]
[null,"Zone 7 - Eastern Europe"]
[null,null,"Belarus",null,"Bulgaria",null,"Czech Republic",null,"Hungary"]
[null,null,"Moldova",null,"Poland",null,"Romania",null,"Russian Federation"]
[null,null,"Slovakia",null,"Ukraine"]
[]
[null,"Zone 8 - Northern Europe"]
[null,null,"Aland Islands",null,"Channel Islands",null,"Denmark",null,"Estonia"]
[null,null,"Faeroe Islands",null,"Finland",null,"Guernsey",null,"Iceland"]
[null,null,"Republic of Ireland",null,"Isle of Man",null,"Jersey",null,"Latvia"]
[null,null,"Lithuania",null,"Norway",null,"Svalbard, and Jan Mayen",null,"Sweden"]
[null,null,"United Kingdom"]
[]
[null,"Zone 9 - Southern Europe"]
[null,null,"Albania",null,"Andorra",null,"Bosnia",null,"Croatia"]
[null,null,"Cyprus",null,"Gibraltar",null,"Greece",null,"Italy"]
[null,null,"Macedonia",null,"Malta",null,"Montenegro",null,"Portugal"]
[null,null,"San Marino",null,"Serbia",null,"Slovenia",null,"Spain"]
[null,null,"Vatican City"]
[]
[null,"Zone 10 - Western Europe"]
[null,null,"Austria",null,"Belgium",null,"France",null,"Germany"]
[null,null,"Liechtenstein",null,"Luxembourg",null,"Monaco",null,"Netherlands"]
[null,null,"Switzerland"]
[]
[null,"Zone 11 - Northern America (Excluding United States of America)"]
[null,null,"Canada",null,"Greenland",null,"St Pierre and Miquelon"]
[]
[null,"Zone 12 - Caribbean"]
[null,null,"Anguilla",null,"Antigua and Barbuda",null,"Aruba",null,"Bahamas"]
[null,null,"Barbados",null,"British Virgin Islands",null,"Cayman Islands",null,"Cuba"]
[null,null,"Dominica",null,"Dominican Republic",null,"El Salvador",null,"Grenada"]
[null,null,"Guadeloupe",null,"Haiti",null,"Montserrat",null,"Netherlands Antilles"]
[null,null,"Puerto Rico",null,"St-Barthelemy",null,"St Kitts and Nevis",null,"St Lucia"]
[null,null,"St Martin",null,"St Vincent",null,"Trinidad and Tobago",null,"Turks and Caicos Islands"]
[null,null,"US Virgin Islands",null,"Jamaica"]
[]
[null,"Zone 13 - Eastern South America"]
[null,null,"Brazil",null,"Falkland Islands",null,"French Guiana",null,"Guyana"]
[null,null,"Paraguay",null,"Suriname",null,"Uruguay"]
[]
[null,"Zone 14 - Northern, Southern and Western South America"]
[null,null,"Argentina",null,"Bolivia",null,"Chile",null,"Colombia"]
[null,null,"Ecuador",null,"Peru",null,"Venezuela"]
[]
[null,"Zone 15 - North-East United States"]
[null,null,"Connecticut",null,"Delaware",null,"District of Columbia",null,"Maine"]
[null,null,"Maryland",null,"Massachusetts",null,"New Hampshire",null,"New Jersey"]
[null,null,"New York",null,"Pennsylvania",null,"Rhode Island",null,"Vermont"]
[]
[null,"Zone 16 - South-East United States"]
[null,null,"Alabama",null,"Arkansas",null,"Florida",null,"Georgia"]
[null,null,"Kentucky",null,"Louisiana",null,"Mississippi",null,"North Carolina"]
[null,null,"Puerto Rico",null,"South Carolina",null,"Tennessee",null,"Virginia"]
[null,null,"West Virigina"]
[]
[null,"Zone 17 - Mid-West United States"]
[null,null,"Illinois",null,"Indiana",null,"Iowa",null,"Kansas"]
[null,null,"Michigan",null,"Minnesota",null,"Missouri",null,"Nebraska"]
[null,null,"North Dakota",null,"Ohio",null,"Oklahoma",null,"South Dakota"]
[null,null,"Wisconsin"]
[]
[null,"Zone 18 - Western United States"]
[null,null,"Alaska",null,"Arizona",null,"California",null,"Colorado"]
[null,null,"Hawaii",null,"Idaho",null,"Montana",null,"Nevada"]
[null,null,"New Mexico",null,"Oregon",null,"Texas",null,"Utah"]
[null,null,"Washington",null,"Wyoming"]
[]
[null,"Zone 19 - Centeral America"]
[null,null,"Belize",null,"Costa Rica",null,"Guatemala",null,"Honduras"]
[null,null,"Mexico",null,"Nicaragua",null,"Panama"]
[]
[null,"Zone 20 - Bermuda"]
[null,null,"Bermuda"]

{"sheet":"Data Validation List","index":11,"n_rows":68,"n_cols":1,"rows_kept":68,"cut":false,"hidden":true,"merged":[]}
[]
[]
["(please select)"]
["Yes"]
["No"]
[]
[]
["(please select)"]
["Yes"]
["No"]
["N/A"]
[]
[]
["(please select)"]
["Yes"]
["No"]
["Don't Know"]
[]
[]
["(please select)"]
[2019]
[2018]
[2017]
[2016]
[2015]
[2014]
[2013]
[2012]
["Prior 2012"]
[]
[]
["(please select)"]
["1 to 2 years"]
["2 to 5 years"]
["+5 years"]
[]
[]
["(please select)"]
["Yes"]
["No"]
["N/A"]
[]
[]
["(please select)"]
[2017]
[2016]
[2015]
[2014]
[2013]
[2012]
["Prior 2012"]
["N/A"]
[]
[]
["(please select)"]
["Class A"]
["Class B"]
["Class C"]
["Class D"]
["Class E"]
["Dual Licence"]
[]
[]
["(please select)"]
["Yes - Parent (regulated FI)"]
["Yes - Parent (non regulated FI)"]
["Yes - Subsidiary"]
["No"]